Cogmind - Beta 16.1 @@@ ROGUE MODE // 2026.02.24 @ 20:24:43 Player: C0-2MO Result: Escaped singularity! Performance ------------- Evolutions (9) 4500 Regions Visited (36) 7200 Robots Destroyed (337) 1685 Value Destroyed (14661) 14661 Prototype IDs (103) 2060 Alien Tech Used (12) 2400 Bonus (56482) 56482 TOTAL SCORE: 88988 Bonus ------- Triggered High Security 500 Triggered Max Security 1000 High Alert Combat Kills 4935 Follower Combat Kills 2812 Hunted by Unchained 1000 Entered Garrisons 800 Used RIF Installer 1500 Network Hubs Disabled 600 Registered with UFD 300 Met Optimus in HQ 500 Met Data Miner 300 Met Zhirov 300 Built Enhanced Grunts 300 A7 Reached Mainframe 300 Met R17 at Cetus 500 Used Core Reset Matrix 3000 Met R17 at Research 2000 Met Sigix 2000 Integrated Exoskeleton 5000 Escaped with Sigix 5000 Destroyed MAIN.C Guards 500 Met MAIN.C 5000 Met Architect 300 Destroyed A8 300 Destroyed Architect 15000 Win 3000 Friendly Fire -265 Cogmind --------- Core Integrity 774/1600 Matter 270/300 Energy 523/590 System Corruption 0% +Membrane Temperature Cool (0) Movement Walking (30) Location Near Former Tau Ceti IV Parts ------- > --- POWER (1) -------- Zero-point Reactor > --- PROPULSION (3) --- Sigix Exoskeleton > --- UTILITY (5) ------ Improved Targeting Computer Quantum Capacitor AEGIS Remote Shield > --- WEAPON (2) ------- Core Cannon > --- INVENTORY (5) ---- Sigix Containment Pod Peak State ------------ > --- POWER ------------ Micro Antimatter Reactor > --- PROPULSION ------- Sigix Exoskeleton > --- UTILITY ---------- Large Storage Unit Experimental Reaction Control System Microwarp Drive > --- WEAPON ----------- Sigix Sheargun Sigix Sheargun > --- INVENTORY -------- Improved Quantum Reactor Quantum Capacitor Phase Shifter Graphene Brace Improved Hardlight Generator Transdimensional Reconstructor Core Regenerator Core Cannon Sigix Containment Pod [Rating: 257] Favorites ----------- Power Micro Antimatter Reactor Engine Light Ion Engine Power Core Light Fission Core Reactor Micro Antimatter Reactor Propulsion VTOL Module Treads Light Treads Leg Sigix Exoskeleton Hover Unit Antigrav Array Flight Unit VTOL Module Utility Medium Storage Unit Device IFF Parser Storage Medium Storage Unit Processor Advanced Terrain Scan Processor Hackware Advanced Hacking Suite Protection Centrium Medium Armor Plating Artifact Microwarp Drive Weapon Heavy Pick Energy Gun Sigix Sheargun Energy Cannon Long-range Proton Cannon Ballistic Gun Light Assault Rifle Ballistic Cannon Hypervelocity Mass Driver Launcher Mini Smartbomb Launcher Special Weapon Remote Datajack Impact Weapon Shock Maul Slashing Weapon Phasing Sabre Piercing Weapon Heavy Pick Special Melee Weapon Advanced Datajack Build | -11 -10 -10 -9 -9 -9 -9 -6 -6 -6 -6 -6 -6 -5 -5 -5 -5 -5 -5 -5 -4 -4 -4 -4 -4 -4 -4 -3 -3 -3 -2 -2 -2 -2 -1 -1 -1 ------- Run | Yrd Mat Min Mat Sto Rec Scr Fac Was Fac Low Low Dat Pro Fac Gar Fac Upp Upp Zhi Pro Fac Ext Cet Arc Hub Gar Res Tes Gar Res Qua Sec Gar Acc Com Ac0 Slots Evolved 18 | . . . 2 . . . 6 . . . . . . 2 . . . . . . 2 . . . . . 2 . . 2 . . . 2 . . Power 2 | . . . . . . . 1 . . . . . . . . . . . . . . . . . . . . . . 1 . . . . . . Propulsion 5 | . . . 2 . . . 2 . . . . . . . . . . . . . . . . . . . 1 . . . . . . . . . Utility 11 | . . . . . . . 3 . . . . . . 2 . . . . . . 2 . . . . . 1 . . 1 . . . 2 . . Weapon . | . . . . . . . . . . . . . . . . . . . . . . . . . . . . . . . . . . . . . Parts Attached 344 | 5 9 6 25 10 . 6 25 2 17 4 3 . 1 21 1 16 1 3 5 1 25 19 3 6 . 3 36 9 2 7 14 14 9 19 17 . Power 48 | . . . 3 3 . 1 2 . 5 . . . . 6 . 3 . . 1 . 4 4 . 2 . 1 4 . 1 1 . 2 2 1 2 . Engine 18 | . . . 3 3 . 1 1 . 2 . . . . 3 . . . . . . 3 . . 1 . . 1 . . . . . . . . . Core 15 | . . . . . . . 1 . 3 . . . . 3 . 3 . . . . 1 3 . . . 1 . . . . . . . . . . Reactor 15 | . . . . . . . . . . . . . . . . . . . 1 . . 1 . 1 . . 3 . 1 1 . 2 2 1 2 . Propulsion 86 | 2 5 4 10 2 . 1 7 1 1 2 1 . . 5 1 6 . . . . 11 6 . . . 1 13 1 . 1 2 3 . . . . Treads 2 | 2 . . . . . . . . . . . . . . . . . . . . . . . . . . . . . . . . . . . . Leg . | . . . . . . . . . . . . . . . . . . . . . . . . . . . . . . . . . . . . . Wheel . | . . . . . . . . . . . . . . . . . . . . . . . . . . . . . . . . . . . . . Hover 9 | . . . . . . . . . . . . . . . . . . . . . 3 . . . . . 6 . . . . . . . . . Flight 75 | . 5 4 10 2 . 1 7 1 1 2 1 . . 5 1 6 . . . . 8 6 . . . 1 7 1 . 1 2 3 . . . . Utility 148 | 1 1 . 2 1 . 2 11 1 11 2 2 . . 6 . 5 1 3 4 . 8 4 1 2 . 1 12 5 1 3 11 7 7 18 15 . Device 94 | 1 . . 1 . . 1 6 1 7 1 1 . . 5 . 4 1 . 1 . 3 1 . 1 . . 9 4 . 2 8 4 5 18 9 . Storage 10 | . . . 1 . . 1 . . . . . . . . . . . . 1 . 1 1 . 1 . . 2 1 . . 1 . . . . . Processor 15 | . . . . . . . . . . 1 1 . . 1 . . . 1 . . 2 1 . . . . . . . . 1 2 2 . 3 . Hackware 20 | . . . . . . . 5 . 3 . . . . . . 1 . 2 1 . 1 . . . . 1 . . 1 1 1 . . . 3 . Protection 8 | . 1 . . 1 . . . . 1 . . . . . . . . . 1 . 1 1 1 . . . 1 . . . . . . . . . Artifact 1 | . . . . . . . . . . . . . . . . . . . . . . . . . . . . . . . . 1 . . . . Weapon 62 | 2 3 2 10 4 . 2 5 . . . . . 1 4 . 2 . . . 1 2 5 2 2 . . 7 3 . 2 1 2 . . . . Energy Gun 8 | 1 . . 2 2 . . . . . . . . . . . . . . . . . . . . . . 1 . . . . 2 . . . . Energy Cannon 9 | . . . 1 . . . . . . . . . . . . . . . . . . . . . . . 4 2 . 1 1 . . . . . Ballistic Gun 16 | 1 3 1 5 1 . . . . . . . . . . . . . . . . . 4 1 . . . . . . . . . . . . . Ballistic Cannon 3 | . . . . . . . . . . . . . . . . . . . . . 1 . 1 . . . . 1 . . . . . . . . Launcher 3 | . . 1 . 1 . . . . . . . . . . . . . . . 1 . . . . . . . . . . . . . . . . Special Weapon 2 | . . . . . . . . . . . . . . 1 . . . . . . . . . . . . 1 . . . . . . . . . Impact Weapon 4 | . . . 2 . . . 1 . . . . . . . . 1 . . . . . . . . . . . . . . . . . . . . Slashing Weapon 8 | . . . . . . . 1 . . . . . 1 2 . 1 . . . . 1 1 . 1 . . . . . . . . . . . . Piercing Weapon 3 | . . . . . . 1 1 . . . . . . 1 . . . . . . . . . . . . . . . . . . . . . . Special Melee Weapon 6 | . . . . . . 1 2 . . . . . . . . . . . . . . . . 1 . . 1 . . 1 . . . . . . Unidentified Prototypes 46 | . . . 1 2 . . 2 . 1 . . . . 3 . 3 . . 4 . 1 . 2 1 . . 6 7 . . 3 . 1 1 8 . Parts Lost 98 | . 3 . 4 1 . . 3 1 4 1 4 . . 7 4 9 2 4 . . 6 14 . . . 6 4 2 1 3 8 7 . . . . Power 19 | . . . 1 . . . 1 . 1 . 1 . . 1 1 1 . 1 . . 3 4 . . . . 1 1 . 1 1 . . . . . Propulsion 41 | . 3 . 1 . . . . . . 1 1 . . 2 3 4 1 1 . . 2 6 . . . 5 3 . . . 4 4 . . . . Utility 28 | . . . . 1 . . 1 1 3 . 2 . . 4 . 4 . 2 . . 1 1 . . . . . . 1 1 3 3 . . . . Weapon 10 | . . . 2 . . . 1 . . . . . . . . . 1 . . . . 3 . . . 1 . 1 . 1 . . . . . . Highest Loss Streak 6 | . 2 . 2 1 . . 2 1 4 1 4 . . 4 3 5 2 2 . . 2 6 . . . 4 2 1 1 3 3 3 . . . . To Critical Strikes 1 | . . . . . . . . . . . . . . . 1 . . . . . . . . . . . . . . . . . . . . . Average Backups 8 | 1 3 4 9 9 10 9 9 9 9 9 9 9 9 9 9 9 9 7 5 4 5 7 8 9 9 9 11 13 13 13 10 8 8 9 6 1 Power . | . 1 1 . . 1 1 . . . . . . . . . . . . . . . . . . 1 1 . . . . . . 2 1 . . Propulsion 1 | . 1 2 4 2 3 3 1 2 2 1 1 2 2 2 1 1 . . . . . 1 . . . . 1 3 3 3 . . . . . . Utility 4 | . . . 2 3 3 3 6 5 5 6 6 6 6 5 6 6 6 4 2 2 2 2 3 4 3 3 5 5 5 4 4 3 2 5 3 1 Weapon 2 | . . 1 1 3 3 1 1 2 1 1 1 1 1 1 2 2 3 2 2 1 1 2 3 4 4 3 2 4 4 4 4 2 1 1 . . Tool/Special . | . . . . . . . . . . . . . . . . . . . . . . . . . . . . . . . . . . . . . Unused Backups 26 | . . 1 2 . . 4 1 . 4 . . . . 2 . . . . . . . . . 1 . 2 3 2 . 1 . 1 . . . 2 Power 2 | . . . . . . . . . . . . . . . . . . . . . . . . . . 2 . . . . . . . . . . Propulsion 7 | . . 1 1 . . . . . . . . . . 1 . . . . . . . . . . . . 1 2 . 1 . . . . . . Utility 13 | . . . . . . 1 1 . 4 . . . . 1 . . . . . . . . . 1 . . 2 . . . . 1 . . . 2 Weapon 2 | . . . 1 . . 1 . . . . . . . . . . . . . . . . . . . . . . . . . . . . . . Tool/Special 2 | . . . . . . 2 . . . . . . . . . . . . . . . . . . . . . . . . . . . . . . Average Slot Usage (%) 85 | . 74 85 97 98 100 100 96 100 98 99 91 93 93 94 86 79 65 59 53 58 85 82 73 78 83 80 78 78 80 79 74 61 75 64 75 63 Engine 2 | . . . 10 11 11 11 7 . . . . . . 2 . . . . . . 4 . . . . . . . . . . . . . . . Core 3 | . . . . . . . 3 13 11 13 7 6 6 7 10 9 5 2 . . . 2 . . . 1 . . . . . . . . . . Reactor 1 | . . . . . . . . . . . . . . . . . . . . . . . . . . . 7 8 5 8 4 2 11 9 8 9 Leg 1 | . . . . . . . . . . . . . . . . . . . . . . . . . . . . . . . . 4 11 9 9 9 Flight 26 | . 16 28 43 44 44 44 39 40 40 39 39 40 40 34 28 22 21 13 11 11 27 28 26 26 26 23 2 19 19 17 19 8 . . . . Device 11 | . 14 14 11 1 . 2 13 19 10 13 10 13 13 19 22 16 5 9 1 5 9 8 . . 4 2 11 13 10 12 15 16 21 14 28 27 Storage 5 | . . . 9 11 11 11 6 6 6 6 6 6 6 5 5 5 5 2 . . 1 4 5 5 5 5 3 4 9 8 8 8 11 9 4 . Processor 4 | . . . . . . . . . . 5 4 6 6 4 5 5 5 5 9 5 7 10 15 15 15 15 7 4 4 4 4 2 . . . 9 Hackware 9 | . . . . . . . 10 6 13 6 6 6 6 5 5 9 11 17 24 29 21 15 15 15 15 17 19 19 21 17 15 7 . . 9 . Protection 2 | . 7 14 1 8 11 8 1 . 1 . 1 . . 2 . . . . . . 3 . 5 4 5 4 . . . . . . . . . . Energy Gun 3 | . 2 . 5 12 22 1 . . . . . . . . . . . . . . . . . . . . . . . . . 5 19 18 13 . Ballistic Gun 2 | . 25 28 8 6 . . . . . . . . . . . . . . . . . 5 . . . . . . . . . . . . . . Impact Weapon 1 | . . . 5 2 . 8 . . 4 6 6 6 6 2 . . 5 5 5 5 . . . . . . . . . . . . . . . . Slashing Weapon 1 | . . . . . . . . . . . . . 5 5 5 5 2 . . . 4 1 3 4 5 3 4 3 4 4 3 2 . . . . Piercing Weapon 1 | . . . . . . 10 5 6 6 6 6 6 . . . . . . . . . . . . . . . . . . . . . . . . Special Melee Weapon 1 | . . . . . . 2 5 6 1 . . . . . . . . . . . . . . 4 5 5 . . . 1 1 . . . . . Peak Build Rating 257 | 5 6 6 23 25 21 30 65 70 79 81 81 69 70 86 86 86 64 65 54 57 89 89 72 86 84 90 150 161 148 168 154 226 229 257 249 240 Average Rating 89 | 3 5 6 19 21 21 26 51 68 75 80 69 69 69 78 80 73 59 54 48 51 78 76 68 77 83 78 132 146 142 158 140 152 222 245 239 238 On Entrance 82 | . 5 6 6 21 21 21 28 65 70 79 81 69 69 70 79 59 64 58 47 51 51 79 63 72 77 84 52 149 144 148 144 105 211 223 240 240 Avg Prop Armor Cover (%) 6 | 33 28 . . . . . 2 . 2 . 4 4 4 4 . 3 3 . . . 5 4 . 14 . . 7 . . . . . . . . . Naked Turns . | . . . . . . . . . . . . . . . . . . . . . . . . . . . . . . . . . . . . . Heaviest Build 70 | 3 6 6 20 20 20 20 32 29 38 33 33 24 25 35 35 35 25 23 6 10 34 34 33 32 22 30 70 57 58 61 49 60 61 60 61 47 Greatest Support 96 | 3 8 8 20 20 20 21 36 37 47 38 38 29 45 38 37 40 26 26 11 11 35 35 26 26 26 31 96 61 61 61 61 60 60 60 85 60 Greatest Overweight (x) 6 | . 1 . . 1 . . . . . . . . . 1 . 1 . . . . 1 1 1 6 . 2 1 . . 1 1 1 1 . 1 . Average Overweight (x) . | . . . . . . . . . . . . . . . . . . . . . . . . 3 . . . . . . . . . . . . Largest Inventory Capacity 15 | 5 5 5 10 10 10 10 10 10 10 10 10 10 10 10 10 10 10 10 5 5 15 15 10 10 10 10 15 15 15 15 15 15 15 15 15 5 Average Capacity 10 | 5 5 5 9 10 10 10 10 10 10 10 10 10 10 10 10 10 10 6 5 5 7 10 10 10 10 9 13 15 15 15 15 14 15 15 9 5 Most Carried 15 | 2 5 5 10 10 10 10 10 10 10 10 10 9 10 10 10 10 9 9 5 5 6 10 9 10 10 10 15 15 15 15 15 15 15 15 15 4 Average Carried 9 | 1 3 4 9 9 10 9 9 9 9 9 9 9 9 9 9 9 9 6 4 4 5 7 8 9 9 9 12 14 14 14 13 13 13 13 9 3 Final Capacity 15 | 5 5 5 10 10 10 10 10 10 10 10 10 10 10 10 10 10 10 5 5 5 15 10 10 10 10 5 15 15 15 15 15 15 15 15 5 5 Final Carried 15 | 2 4 5 10 10 10 10 10 10 10 9 9 9 10 10 10 9 9 5 5 5 6 7 9 10 10 5 15 14 15 14 15 13 14 15 4 2 Class Distribution -------------------- 26% | Hacker-Sprinter 17% | Sprinter 12% | Hacker-Mutant 10% | Alien-Sigix 4% | Hacker-Scout 4% | Scout 4% | Scientist-Scout 3% | Hacker-Ninja 3% | Scavenger-Mutant Dominant Class ---------------- Scavenger-Mutant | -10/Materials Scavenger-Mutant | -10/Mines Sprinter | -9/Materials Sprinter | -9/Storage Sprinter | -9/Recycling Sprinter | -9/Scraptown Hacker-Sprinter | -6/Factory Infiltrator-Sprinter | -6/Waste Hacker-Sprinter | -6/Factory Scientist-Scout | -6/Lower Caves Scout | -6/Lower Caves Scout | -6/Data Miner Scout | -5/Proximity Caves Scout | -5/Factory Infiltrator-Sprinter | -5/Garrison Hacker-Scout | -5/Factory Hacker-Sprinter | -5/Upper Caves Hacker-Sprinter | -5/Upper Caves Hacker-Sprinter | -5/Zhirov Wizard-Sprinter | -4/Proximity Caves Hacker-Ninja | -4/Factory Hacker-Scout | -4/Extension Hacker-Sprinter | -4/Cetus Hacker-Mutant | -4/Archives Hacker-Sprinter | -4/Hub_04(d) Hacker-Sprinter | -4/Garrison Hacker-Mutant | -3/Research Hacker-Sprinter | -3/Testing Hacker-Sprinter | -3/Garrison Hacker-Sprinter | -2/Research Hacker-Sprinter | -2/Quarantine Alien-Sigix | -2/Section 7 Alien-Sigix | -2/Garrison Alien-Sigix | -1/Access Alien-Sigix | -1/Command Alien-Sigix | -1/Access_0 Resources | -11 -10 -10 -9 -9 -9 -9 -6 -6 -6 -6 -6 -6 -5 -5 -5 -5 -5 -5 -5 -4 -4 -4 -4 -4 -4 -4 -3 -3 -3 -2 -2 -2 -2 -1 -1 -1 ----------- Run | Yrd Mat Min Mat Sto Rec Scr Fac Was Fac Low Low Dat Pro Fac Gar Fac Upp Upp Zhi Pro Fac Ext Cet Arc Hub Gar Res Tes Gar Res Qua Sec Gar Acc Com Ac0 Matter Collected 7923 | 256 279 98 528 354 . 100 380 25 432 80 45 . 10 263 94 155 . 100 40 186 389 1107 104 70 10 367 499 . 268 178 150 510 226 137 422 61 Remotely . | . . . . . . . . . . . . . . . . . . . . . . . . . . . . . . . . . . . . . Salvage Created 15532 | 102 550 150 1357 453 . . 859 . 833 149 80 . . 401 173 437 . 147 246 80 937 1118 193 193 45 244 1415 . 430 360 334 482 2092 57 1399 216 Parts 794 | 3 42 15 97 26 . . 45 . 45 9 3 . . 35 6 31 . 2 2 . 33 48 9 13 2 10 49 . 17 24 9 44 97 3 72 3 Haulers Intercepted 18 | . 2 . 4 3 . . 1 . 4 . . . . . . . . . . . 2 . . . . . 1 . . . 1 . . . . . Recyclers Shooed 6 | . . . 1 . . . 2 . 1 . . . . . . . . . . . . 1 . . . . . . . . . . . . 1 . Parts Field Recycled . | . . . . . . . . . . . . . . . . . . . . . . . . . . . . . . . . . . . . . Retrieved Matter . | . . . . . . . . . . . . . . . . . . . . . . . . . . . . . . . . . . . . . Parts Self-Destructed 15 | . . . . . . . . . . 8 5 . . . . . . 1 1 . . . . . . . . . . . . . . . . . Prevented 2 | . . . . . . . . . . 1 . . . . . . . . 1 . . . . . . . . . . . . . . . . . Parts Restored . | . . . . . . . . . . . . . . . . . . . . . . . . . . . . . . . . . . . . . Kills | -11 -10 -10 -9 -9 -9 -9 -6 -6 -6 -6 -6 -6 -5 -5 -5 -5 -5 -5 -5 -4 -4 -4 -4 -4 -4 -4 -3 -3 -3 -2 -2 -2 -2 -1 -1 -1 ------- Run | Yrd Mat Min Mat Sto Rec Scr Fac Was Fac Low Low Dat Pro Fac Gar Fac Upp Upp Zhi Pro Fac Ext Cet Arc Hub Gar Res Tes Gar Res Qua Sec Gar Acc Com Ac0 Combat Hostiles Destroyed 227 | . 16 6 35 8 . . 7 . 9 4 3 . . 4 2 5 . 4 . 4 8 21 3 . . 7 11 . 5 8 . 13 29 . 12 3 Melee 32 | . . . 1 . . . 5 . 2 2 3 . . 4 2 5 . . . . 1 4 . . . 1 2 . . . . . . . . . Guns 98 | . 16 3 22 8 . . . . . . . . . . . . . . . . . 5 . . . . . . . . . 5 28 . 11 . Cannons 18 | . . . 2 . . . . . . . . . . . . . . . . . . . 3 . . . 5 . 1 2 . . 1 . 1 3 AOE 63 | . . 3 10 . . . . . 5 . . . . . . . . 4 . 3 7 12 . . . 6 . . . 5 . 8 . . . . Classes Destroyed 25 | 2 5 . 7 . . . 1 . . 2 . . . 1 . . . . . 1 . 1 . . . . 1 . . . . 1 2 . 1 . Worker 13 | . . . 2 . . . 1 . 1 . . . . 3 . . . . . . 1 1 . . . . . . . . . . . 2 2 . Builder 10 | . . . 1 . . . . . . . . . . 1 . 2 . . . . 3 . . . . . 1 . . . 1 1 . . . . Tunneler 7 | 1 . 2 . . . . 1 . . . . . . 1 . 1 . . . . . . . . . . . . . . . . . 1 . . Hauler 18 | . 2 . 4 3 . . 1 . 4 . . . . . . . . . . . 2 . . . . . 1 . . . 1 . . . . . Recycler 17 | 1 . . . . . . 2 . . . . . . . . 1 . . . . 4 3 . . . . 2 . . . 1 . . . 3 . Minesweeper 1 | . . . . . . . . . . 1 . . . . . . . . . . . . . . . . . . . . . . . . . . Mechanic 2 | . . . 1 1 . . . . . . . . . . . . . . . . . . . . . . . . . . . . . . . . Operator 21 | . 1 . . . . . 3 . 4 . . . . 2 . . . . . . . 1 . 6 . . 3 . . . 1 . . . . . Drone 1 | . . . . . . . . . . . . . . . . . . . . 1 . . . . . . . . . . . . . . . . Watcher 21 | . 1 . 2 . . . 2 . 5 . . . . 3 . 2 . . . . . . . . 1 . 1 . . . 2 . . . 2 . Swarmer 96 | . 9 6 17 4 . . 1 . 7 3 2 . . . . 4 . . . 1 8 10 . . . 3 . . . 5 . 8 8 . . . Cutter 5 | . . . . . . . . . . . . . . 2 . . . . . . . . . . . . . . . . . . 3 . . . Grunt 51 | . 7 . 8 2 . . 3 . . . 1 . . . . . . 3 . 1 . 6 . . . 4 7 . 3 . . . 6 . . . Brawler 3 | . . . 1 . . . . . . . . . . . . . . . . . . 1 . . . . . . . . . . 1 . . . Duelist 2 | . . . 1 . . . . . . . . . . . . . . 1 . . . . . . . . . . . . . . . . . . Protector 1 | . . . 1 . . . . . . . . . . . . . . . . . . . . . . . . . . . . . . . . . Sentry 28 | . . . 7 2 . . 1 . 1 . . . . . 2 1 . . . 1 . 2 . . . . 3 . 2 2 . . 2 . 2 . Specialist 2 | . . . . . . . . . . . . . . . . . . . . . . . . . . . . . . . . . 2 . . . Hunter 3 | . . . . . . . . . . . . . . . . . . . . . . . . . . . 1 . . . . . 2 . . . Programmer 17 | . . . . . . . 2 . 1 . . . . 2 . . . . . . . 1 . . . . . . . 1 . 3 1 . 6 . Behemoth 2 | . . . . . . . . . . . . . . . . . . . . . . 1 . . . . . . . . . . 1 . . . Cetus Guard 3 | . . . . . . . . . . . . . . . . . . . . . . . 3 . . . . . . . . . . . . . M Guard 2 | . . . . . . . . . . . . . . . . . . . . . . . . . . . . . . . . . . . 2 . Enhanced Grunt 1 | . . . . . . . . . . . . . . . . . . . . . . . . . . . . . . . . . . . . 1 Combat Programmer 2 | . . . . . . . . . . . . . . . . . . . . . . . . . . . . . . . . . . . 2 . Striker 2 | . . . . . . . . . . . . . . . . . . . . . . . . . . . . . . . . . 2 . . . Executioner 2 | . . . . . . . . . . . . . . . . . . . . . . . . . . . . . . . . 2 . . . . Assembled 1 | . . . . . . . . . . . . . . . . . . . . . . . . . . . . . . . . . . . 1 . Guerrilla 1 | . . . . . . . . . . . . . . . . . . . . . . . . . . . . . . . . . 1 . . . Mutant 1 | . . . . . . . . . . 1 . . . . . . . . . . . . . . . . . . . . . . . . . . Best Kill Streak 10 | 2 5 5 10 4 . . 4 . 5 3 2 . . 2 2 3 . 4 . 3 4 7 2 5 1 3 3 . 3 5 2 5 8 2 4 2 Combat Bots Only 8 | . 5 3 8 4 . . 3 . 4 3 2 . . 2 2 3 . 4 . 3 4 5 2 . . 3 2 . 3 5 . 4 8 . 4 2 Max Kills in Single Turn 5 | 1 1 5 5 1 . . 1 . 3 1 1 . . 1 1 1 . 2 . 1 4 3 1 1 1 3 1 . 1 4 1 3 2 1 2 1 Gunslinging 1 | . . . 1 . . . . . . . . . . . . . . . . . . . . . . . . . . . . 1 1 . . . Exploded 5 | . . 3 5 . . . . . 3 . . . . . . . . 2 . 1 4 3 . . . 3 . . . 4 . 2 . . . . Melee 1 | . . . 1 . . . 1 . 1 1 1 . . 1 1 1 . . . . 1 1 . . . 1 1 . . . . . . . . . Uniques/NPCs Destroyed 2 | . . . . . . . . . . . . . . . . . . . . . . . . . . . . . . . . . . . . 2 A8 (-1/Access_0) Architect (-1/Access_0) Combat | -11 -10 -10 -9 -9 -9 -9 -6 -6 -6 -6 -6 -6 -5 -5 -5 -5 -5 -5 -5 -4 -4 -4 -4 -4 -4 -4 -3 -3 -3 -2 -2 -2 -2 -1 -1 -1 -------- Run | Yrd Mat Min Mat Sto Rec Scr Fac Was Fac Low Low Dat Pro Fac Gar Fac Upp Upp Zhi Pro Fac Ext Cet Arc Hub Gar Res Tes Gar Res Qua Sec Gar Acc Com Ac0 Hostile Shots Fired 1933 | . 89 22 125 37 5 . 104 . 163 12 51 . . 70 32 81 12 22 . 1 51 93 . . 6 18 20 56 43 23 38 138 273 . 263 85 Missed 901 | . 36 10 46 12 2 . 49 . 89 6 27 . . 33 15 36 6 9 . . 23 49 . . 4 8 8 32 23 14 20 69 91 . 137 47 Intercepted 16 | . . . . . . . . . . . . . . . . . . . . . . . . . . . . . . . . . . . 16 . Hits 1032 | . 53 12 79 25 3 . 55 . 74 6 24 . . 37 17 45 6 13 . 1 28 44 . . 2 10 12 24 20 9 18 69 182 . 126 38 Melee 18 | . . . 1 . . . . . . . . . . 7 . . . . . . . . . . . . . . . . . . 10 . . . Projectile 1014 | . 53 12 78 25 3 . 55 . 74 6 24 . . 30 17 45 6 13 . 1 28 44 . . 2 10 12 24 20 9 18 69 172 . 126 38 AOE 20 | . . . . . . . . . . . . . . 2 . . . . . . . 7 . . 1 . . . . . . . . . 10 . Critical Strikes 46 | . . . 1 . . . 1 . . . . . . 6 1 4 . 1 . . 1 . . . . 1 . 3 1 1 2 3 6 . 11 3 Actively Blocked 12 | . . . . . . . . . . . . . . 1 . . . . . . . . . . . . . . . . 2 3 6 . . . Part Disruptions 1 | . . . . . . . . . . . . . . . . . . . . . . . . . . . . 1 . . . . . . . . Damage Taken 15022 | . 491 129 953 268 47 . 660 12 821 97 317 . . 804 312 859 136 239 . 18 580 1302 . . 115 246 291 461 423 353 673 1443 1064 85 1534 289 Core 4070 | . 126 29 240 34 . . 182 . 251 12 90 . . 81 47 183 23 97 . . 88 355 . . . 45 96 168 134 19 183 634 313 46 495 99 Absorbed by Shields 1994 | . . . . . . . . . . . . . . . . . . . . . . 58 . . . . . . . . . 186 852 . 652 246 Redirected to Shielding 214 | . . . . 11 . . 5 . 93 . 39 . . 66 . . . . . . . . . . . . . . . . . . . . . . Ignored by Resistances 5464 | . . . . . . . . . . . . . . . . . . . . . . . . . . . . . . . . 580 2018 58 2255 553 Regen/Repaired (Parts) 584 | . 33 . 107 83 . 51 27 31 137 . . . . . . 94 . . . . 21 . . . . . . . . . . . . . . . Core Remaining (%) 49 | 100 . 38 . . . 31 . . . . . . 37 . . . . . . 56 . . . . . 57 . . 69 . . . 9 . . 48 Volleys Fired 647 | 6 84 10 76 25 2 . . . 3 . . . . 1 1 . . 3 . 7 5 77 8 . . 12 50 8 27 15 . 22 76 19 99 11 Largest 2 | 2 2 2 2 2 2 . . . 1 . . . . 1 1 . . 1 . 1 1 2 1 . . 1 1 1 1 1 . 2 2 2 2 1 Hottest 300 | 60 60 40 90 90 90 . . . 43 . . . . 7 43 . . 43 . 80 80 80 56 . . 80 94 94 120 94 . 300 300 200 300 300 Shots Fired 1044 | 12 168 19 115 50 4 . . . 3 . . . . 1 1 . . 3 . 7 5 136 7 . . 12 50 8 27 15 . 31 145 23 191 11 Gun 844 | 12 168 18 98 50 4 . . . . . . . . . . . . . . . . 125 . . . . 1 . . . . 20 141 23 184 . Cannon 147 | . . . 13 . . . . . . . . . . . . . . . . . 3 . 7 . . 4 46 8 27 12 . 5 4 . 7 11 Launcher 49 | . . 1 4 . . . . . 3 . . . . . 1 . . 3 . 7 2 11 . . . 8 . . . 3 . 6 . . . . Special 4 | . . . . . . . . . . . . . . 1 . . . . . . . . . . . . 3 . . . . . . . . . Kinetic 408 | 6 163 18 40 34 . . . . . . . . . . . . . . . . 3 125 7 . . 4 8 . . . . . . . . . Thermal 69 | 6 5 . 13 . . . . . . . . . . . . . . . . . . . . . . . 1 4 9 4 . 5 4 . 7 11 Explosive 49 | . . 1 4 . . . . . 3 . . . . . 1 . . 3 . 7 2 11 . . . 8 . . . 3 . 6 . . . . Electromagnetic 146 | . . . 58 16 4 . . . . . . . . . . . . . . . . . . . . . 38 4 18 8 . . . . . . Slashing 368 | . . . . . . . . . . . . . . . . . . . . . . . . . . . . . . . . 20 141 23 184 . Robot Hit Streak 13 | 9 12 5 11 6 9 . . . 2 . . . . 3 . . . 2 . . 6 9 2 . . 3 7 1 10 12 . 13 11 1 12 5 Robot Miss Streak 6 | 2 5 3 3 2 3 . . . . . . . . . . . . 1 . . . 6 1 . . 3 3 6 1 1 . 3 6 1 5 1 Penetration Max 1 | . . . . . . . . . . . . . . . . . . . . . . 1 1 . . . . . . . . 1 1 1 1 1 Secondary Targets 16 | . 2 . 1 . . . . . . . . . . . . . . . . . . . . . . . . . . . . 2 8 . 3 . Max Gunslinging Chain 1 | . 1 . 1 . . . . . . . . . . . . . . . . . . . . . . . . . . . . 1 1 . 1 . Capacitor 54 | . . . . . . . . . . . . . . . . . . . . . . . . . . . 30 4 . 4 . . . . 7 9 Shots Hit Robots 877 | 10 101 10 107 37 2 . 35 8 29 8 6 . . 20 2 21 . 2 6 1 18 87 4 11 3 2 54 4 21 16 14 16 82 1 131 8 Core Hits 456 | 3 38 11 67 17 . . 14 . 19 3 3 . . 9 5 8 . 6 1 10 12 48 3 2 1 24 27 . 8 11 3 21 45 1 33 3 Critical Kills 14 | . 1 . 1 1 . . 1 . 1 1 1 . . . . . . . . . 1 1 3 . . . 1 . . . . . . . . 1 Critical Parts Destroyed 30 | . 1 . 2 1 . . 1 . 2 1 1 . . . . . . . 1 . 1 3 3 . . 2 2 . . . . 1 1 . 2 5 Critical Strikes 71 | . 2 . 4 3 . . 9 . 6 2 2 . . 1 . 3 . . 1 . 2 6 6 . 1 2 4 . . . . 1 4 . 3 9 Destroy 35 | . 2 . . 1 . . . . . . . . . . . . . . . . 2 5 6 . . 2 3 . . . . 1 2 . 2 9 Corrupt 1 | . . . . 1 . . . . . . . . . . . . . . . . . . . . . . . . . . . . . . . . Smash 16 | . . . 4 1 . . 2 . 4 2 2 . . . . . . . 1 . . . . . . . . . . . . . . . . . Sever 10 | . . . . . . . . . . . . . . 1 . 3 . . . . . 1 . . 1 . 1 . . . . . 2 . 1 . Impale 9 | . . . . . . . 7 . 2 . . . . . . . . . . . . . . . . . . . . . . . . . . . Melee Attacks 663 | . . . 40 9 . . 68 10 117 18 13 . 1 88 18 67 1 3 6 3 43 20 . 12 10 14 34 14 3 5 37 9 . . . . Impact 149 | . . . 40 9 . . 5 . 47 7 12 . . 12 . 3 . 3 6 3 2 . . . . . . . . . . . . . . . Slashing 346 | . . . . . . . 1 . . . . . 1 76 18 64 1 . . . 41 20 . 11 10 14 31 12 3 . 34 9 . . . . Piercing 142 | . . . . . . . 60 . 70 11 1 . . . . . . . . . . . . . . . . . . . . . . . . . Sneak Attacks 97 | . . . 6 3 . . 10 6 10 1 1 . . 9 2 6 . . . 1 9 9 . 8 . 1 9 2 . . 4 . . . . . Combat Hostiles 13 | . . . . . . . 2 . . . 1 . . . 2 1 . . . 1 . 3 . . . 1 2 . . . . . . . . . Follow-up Attacks 9 | . . . . . . . . . 4 1 1 . . 2 . 1 . . . . . . . . . . . . . . . . . . . . Damage Inflicted 54483 | 99 818 285 3307 837 31 . 1868 . 2203 507 336 . . 1492 218 1276 . 533 729 461 1951 4743 145 859 135 1943 2268 155 892 892 854 2934 7225 265 10270 3952 Guns 20252 | 99 818 92 1298 507 31 . . . . . . . . . . . . . . . . 1595 . . . . . . . . . 1040 5885 120 8767 . Cannons 9922 | . . . 180 . . . . . . . . . . . . . . . . . 48 . 145 . . 41 1247 43 892 366 . 400 1340 . 1300 3920 Explosions 8588 | . . 193 848 . . . . . 472 . . . . . 56 . . 533 . 365 490 1925 . . . 1826 . . . 526 . 1354 . . . . Melee 15201 | . . . 981 330 . . 1868 . 1731 507 336 . . 1492 162 1276 . . 729 96 1413 1223 . 859 135 76 1021 112 . . 854 . . . . . Ramming 520 | . . . . . . . . . . . . . . . . . . . . . . . . . . . . . . . . 140 . 145 203 32 Kinetic 3592 | 44 776 92 436 333 . . . . . . . . . . . . . . . . 48 1595 145 . . 41 82 . . . . . . . . . Thermal 7890 | 55 42 . 407 . . . . . . . . . . . . . . . . . . . . . . . . . 291 135 . 400 1340 . 1300 3920 Explosive 8361 | . . 193 621 . . . . . 472 . . . . . 56 . . 533 . 365 490 1925 . . . 1826 . . . 526 . 1354 . . . . Electromagnetic 3107 | . . . 862 174 31 . . . . . . . . . . . . . . . . . . . . . 1165 43 601 231 . . . . . . Impact 4575 | . . . 981 330 . . 387 . 907 367 302 . . 103 . 55 . . 729 96 318 . . . . . . . . . . . . . . . Slashing 23959 | . . . . . . . . . . . . . . 1389 162 1221 . . . . 1095 1223 . 859 135 76 1021 112 . . 854 1040 5885 120 8767 . Piercing 2479 | . . . . . . . 1481 . 824 140 34 . . . . . . . . . . . . . . . . . . . . . . . . . Highest Corruption 5 | . . . . . . . . . 2 . . . . 1 . 1 1 1 1 1 4 4 4 4 2 2 . 5 5 1 5 . . . . . Average Corruption 2 | . . . . . . . . . 1 . . . . 1 . 1 1 1 1 1 3 4 4 3 2 2 . 2 5 1 1 . . . . . Corruption Purged 7 | . . . . . . . . . 2 . . . . 1 . . . . . . . . . 4 . . . . . . . . . . . . Corruption Blocked . | . . . . . . . . . . . . . . . . . . . . . . . . . . . . . . . . . . . . . Effects 79 | . . . . . . . . . 12 . . . . 2 . 2 . . . 2 5 25 7 3 1 7 . 6 4 . 3 . . . . . Message Errors 23 | . . . . . . . . . 2 . . . . 1 . 1 . . . . 1 7 1 . 1 3 . 4 1 . 1 . . . . . Matter Fused 15 | . . . . . . . . . 5 . . . . . . . . . . . 2 3 1 . . 1 . 1 1 . 1 . . . . . Heat Flow Errors 7 | . . . . . . . . . . . . . . . . . . . . 1 1 1 1 1 . 1 . . 1 . . . . . . . Energy Discharges 11 | . . . . . . . . . 2 . . . . . . 1 . . . . . 6 . 1 . 1 . . . . . . . . . . Parts Rejected 3 | . . . . . . . . . . . . . . 1 . . . . . . . 1 . . . 1 . . . . . . . . . . Data Loss (minor) 14 | . . . . . . . . . 1 . . . . . . . . . . 1 1 5 3 . . . . 1 1 . 1 . . . . . Data Loss (major) 5 | . . . . . . . . . 2 . . . . . . . . . . . . 2 . 1 . . . . . . . . . . . . Weapon Failures 1 | . . . . . . . . . . . . . . . . . . . . . . . 1 . . . . . . . . . . . . . Overload Shots 1 | . . . . . . . . . . . . . . . . . . . . . . . . . . . . . 1 . . . . . . . Overflow Damage 7609 | . . . 297 98 . . 405 . 254 131 128 . . 477 . 257 . . 563 56 722 455 . 393 . . 128 57 2 33 371 334 220 65 816 1347 Projectiles 2564 | . . . . . . . . . . . . . . . . . . . . . . . . . . . 10 . 2 . . 215 220 . 770 1347 Explosions 378 | . . . 36 . . . . . 18 . . . . . . . . . . . 14 158 . . . . . . . 33 . 119 . . . . Melee 4667 | . . . 261 98 . . 405 . 236 131 128 . . 477 . 257 . . 563 56 708 297 . 393 . . 118 57 . . 371 . . 65 46 . Knockbacks 14 | . . . . . . . 3 . 1 . 1 . . . . 1 . . . 1 1 . 2 . . . . . . . . . . . 3 1 Impact 12 | . . . . . . . 3 . 1 . 1 . . . . 1 . . . 1 1 . . . . . . . . . . . . . 3 1 Kinetic 2 | . . . . . . . . . . . . . . . . . . . . . . . 2 . . . . . . . . . . . . . Secondary . | . . . . . . . . . . . . . . . . . . . . . . . . . . . . . . . . . . . . . Self-Inflicted Damage 115 | . . . 24 . . . . . . . . . . . . . . . . . . . . . . 2 . . . . . 75 . 14 . . Shots 5 | . . . 1 . . . . . . . . . . . . . . . . . . . . . . 1 . . . . . 2 . 1 . . Rammed . | . . . . . . . . . . . . . . . . . . . . . . . . . . . . . . . . . . . . . Targets Rammed 11 | . . . . . . . . . . . . . . . . . . . . . . . . . . . . . . . . 3 . 2 5 1 Kicked 11 | . . . . . . . . . . . . . . . . . . . . . . . . . . . . . . . . 3 . 2 5 1 Crushed . | . . . . . . . . . . . . . . . . . . . . . . . . . . . . . . . . . . . . . Highest Temperature 380 | 20 12 24 221 108 41 . 165 261 305 138 108 . 71 44 . . . . . 64 230 127 272 103 . 89 380 114 1 . 5 . . 7 214 134 Average Temperature 55 | 10 5 14 54 31 18 . 40 88 88 50 39 . 52 17 . . . . . 8 19 17 121 53 . 21 111 58 1 . 5 . . 7 26 81 Received Heat Transfer 1889 | . 126 45 252 54 18 . 138 . 144 . 54 . . 163 18 225 21 27 . . 9 80 . . . 72 48 51 51 9 54 17 110 . 103 . Effects 6 | . . . . . . . . 1 4 . . . . . . . . . . . . . . . . . 1 . . . . . . . . . Energy Bleed 1 | . . . . . . . . 1 . . . . . . . . . . . . . . . . . . . . . . . . . . . . Interference 3 | . . . . . . . . . 3 . . . . . . . . . . . . . . . . . . . . . . . . . . . Matter Decay 1 | . . . . . . . . . 1 . . . . . . . . . . . . . . . . . . . . . . . . . . . Short Circuit 1 | . . . . . . . . . . . . . . . . . . . . . . . . . . . 1 . . . . . . . . . Siege Activations . | . . . . . . . . . . . . . . . . . . . . . . . . . . . . . . . . . . . . . Martial Activations . | . . . . . . . . . . . . . . . . . . . . . . . . . . . . . . . . . . . . . Shielding Activations . | . . . . . . . . . . . . . . . . . . . . . . . . . . . . . . . . . . . . . Robots Disrupted . | . . . . . . . . . . . . . . . . . . . . . . . . . . . . . . . . . . . . . Combat Hostiles . | . . . . . . . . . . . . . . . . . . . . . . . . . . . . . . . . . . . . . Robots Corrupted 23 | . . . 1 1 . . 3 . 3 2 . . . . . . . . . 1 1 . . . . . 4 . 4 1 . . . 1 1 . Combat Hostiles 16 | . . . . . . . 2 . 2 2 . . . . . . . . . 1 . . . . . . 4 . 4 1 . . . . . . Parts Fried 53 | . . . 10 3 . . 5 . 5 2 1 . . . . . . . 2 . 1 . . . . . 14 . 4 2 . . . 4 . . Impact Corruptions 53 | . . . 8 1 . . 4 . 8 3 3 . . . . 1 . . 14 2 5 . . . . . . . . . . . . 2 2 . Robots Melted . | . . . . . . . . . . . . . . . . . . . . . . . . . . . . . . . . . . . . . Combat Hostiles . | . . . . . . . . . . . . . . . . . . . . . . . . . . . . . . . . . . . . . Parts Melted 2 | . . . 1 . . . . . . . . . . . . . . . . . . . . . . . . . . . 1 . . . . . Heat Transferred 1143 | 125 100 . 572 . . . . . . . . . . . . . . . . . . . . . . . . . 235 111 . . . . . . Parts Sabotaged . | . . . . . . . . . . . . . . . . . . . . . . . . . . . . . . . . . . . . . Parts Stolen . | . . . . . . . . . . . . . . . . . . . . . . . . . . . . . . . . . . . . . Parts Stripped . | . . . . . . . . . . . . . . . . . . . . . . . . . . . . . . . . . . . . . Power Chain Reactions 5 | . . . 5 . . . . . . . . . . . . . . . . . . . . . . . . . . . . . . . . . Alert | -11 -10 -10 -9 -9 -9 -9 -6 -6 -6 -6 -6 -6 -5 -5 -5 -5 -5 -5 -5 -4 -4 -4 -4 -4 -4 -4 -3 -3 -3 -2 -2 -2 -2 -1 -1 -1 ------- Run | Yrd Mat Min Mat Sto Rec Scr Fac Was Fac Low Low Dat Pro Fac Gar Fac Upp Upp Zhi Pro Fac Ext Cet Arc Hub Gar Res Tes Gar Res Qua Sec Gar Acc Com Ac0 Maximum Alert Level 5 | . 1 1 3 2 1 . . . 4 . . . . 1 2 2 . . . . 2 3 3 2 1 3 2 2 3 2 1 5 5 5 5 . Low Security (%) 29 | 100 33 17 27 . 31 . 100 100 12 . . . . 83 45 9 . . . . . 1 . 41 75 5 18 . . 32 43 34 . . . . Level 1 30 | . 66 82 27 25 68 . . . 21 . . . . 16 43 63 . . . . 62 13 . 45 24 26 58 44 . 39 56 17 . . . . Level 2 19 | . . . 28 74 . . . . 7 . . . . . 10 27 . . . . 37 56 85 12 . 54 23 55 96 28 . 11 . . . . Level 3 6 | . . . 16 . . . . . 32 . . . . . . . . . . . . 28 14 . . 13 . . 3 . . . . . . . Level 4 3 | . . . . . . . . . 25 . . . . . . . . . . . . . . . . . . . . . . . . . 28 . Level 5 8 | . . . . . . . . . . . . . . . . . . . . . . . . . . . . . . . . . 99 100 45 . High Security 1 | . . . . . . . . . . . . . . . . . . . . . . . . . . . . . . . . . . . 26 . Max Security . | . . . . . . . . . . . . . . . . . . . . . . . . . . . . . . . . 36 . . . . Peak Influence 2724 | 10 394 310 849 685 356 . 189 29 1413 . . . . 259 412 605 . . . . 602 872 718 436 335 704 535 605 773 477 254 2127 2724 2248 2096 . Initial 1634 | . . 127 105 355 232 . . 29 . . . . . . 117 200 . . . . 318 107 488 279 21 140 204 267 426 434 180 72 1595 1634 1427 . Average 518 | 2 251 244 397 514 242 . 38 3 730 . . . . 144 249 320 . . . . 390 598 616 242 157 502 302 431 558 312 200 838 2160 1896 1696 . Influence Increases 21543 | 10 611 253 1378 530 158 . 696 37 2314 216 167 . . 927 305 900 30 90 15 65 1266 1531 350 237 619 624 775 601 397 302 314 1176 1149 846 2455 199 Destroy 0b10 Robot/C 6760 | . 320 120 680 160 . . 160 . 700 60 120 . . 80 40 100 . 80 . 60 180 720 160 80 120 280 220 . 140 160 . 260 580 280 900 . Destroy 0b10 Robot/NC 670 | 10 20 15 55 20 . . 50 . 90 5 . . . 50 . 30 . . 15 5 50 35 10 30 10 . 40 . . . 30 5 10 25 60 . Destroy Leader 1170 | . 66 20 152 46 . . 56 . 170 10 10 . . 26 . 24 . 10 . . 22 72 . . 24 20 54 . 10 40 6 30 50 50 202 . Allied During Kill 1289 | . . . . . . . 1 . 52 21 22 . . . . . . . . . . 326 165 110 124 60 . . 11 . . . . 39 358 . Trap Triggered on 0b10 30 | . . . 20 . . . . . . . . . . . . . . . . . 10 . . . . . . . . . . . . . . . Successful Hack 1010 | . 25 . 26 10 8 . 74 . 96 . . . . 102 . 11 . . . . 3 30 . . 63 . 107 215 . . 71 84 . 26 59 . Select Force Hacks 430 | . 60 . 90 . 150 . . . . . . . . . . . . . . . . . . . 100 . 30 . . . . . . . . . Disable Machine 855 | . . . . 30 . . 30 . 150 . . . . 15 . 15 . . . . 15 15 . 15 90 15 30 30 . . 75 165 30 30 90 15 Anti-Garrison Action 850 | . . . . 200 . . . . 200 . . . . . 100 . . . . . . . . . . 100 . . 50 . . . 50 150 . . Destroy Structure 2544 | . . 8 55 4 . . 25 37 106 . . . . 114 120 60 . . . . 106 138 . 2 28 104 24 26 6 42 42 227 339 246 501 184 Advance Influence 300 | . . . . . . . . . . . . . . . . . . . . . 300 . . . . . . . . . . . . . . . Partial Spotted 1440 | . . . 30 30 . . 135 . 285 . . . . 195 . 135 . . . . 240 15 . . 30 45 45 30 15 15 60 105 15 . 15 . Lose Combat Pursuer 4095 | . 120 90 270 30 . . 165 . 465 120 15 . . 345 45 525 30 . . . 240 180 15 . 30 . 225 300 165 45 30 300 75 . 270 . Miscellaneous 100 | . . . . . . . . . . . . . . . . . . . . . 100 . . . . . . . . . . . . . . . Influence Decreases 22423 | 10 284 310 805 776 635 120 612 121 1331 668 332 366 . 759 91 690 270 158 299 35 1076 879 524 875 479 460 664 508 192 754 507 256 552 1340 2433 2252 Entered New Map 9780 | . . 200 165 488 365 120 . 55 . 364 102 366 . . 51 182 220 68 284 . 12 113 384 419 39 60 160 208 142 339 141 56 532 1090 803 2252 Time Decay 6684 | 10 254 110 440 278 270 . 386 28 511 294 110 . . 469 . 318 30 50 15 35 334 446 140 416 130 . 464 180 . 100 286 120 . 230 230 . Search Patrol Dispatched 600 | . . . . . . . . . . . . . . 200 . 100 . . . . 200 . . . . . . 100 . . . . . . . . Lost Part 979 | . 30 . 40 10 . . 29 10 40 10 40 . . 70 40 90 20 40 . . 60 140 . . . 60 40 20 10 30 80 70 . . . . Lost Ally 2274 | . . . 10 . . . 16 28 180 . 80 . . 20 . . . . . . 20 180 . 40 160 40 . . 40 10 . 10 20 20 1400 . Purge Threat 2106 | . . . 150 . . . 181 . 600 . . . . . . . . . . . 450 . . . 150 300 . . . 275 . . . . . . Squads Dispatched 160 | . 3 . 7 4 . . 14 . 28 . . . . 15 . 10 . . . . 9 3 . . 9 . 11 5 . 3 3 14 . 12 10 . Investigation 86 | . 2 . 6 3 . . 8 . 18 . . . . 8 . 8 . . . . 7 2 . . 7 . 9 3 . 1 2 . . 2 . . Extermination 25 | . . . . . . . 5 . 3 . . . . 5 . 2 . . . . 2 . . . 1 . . 1 . 1 . 1 . 2 2 . Reinforcement 20 | . 1 . . . . . 1 . 6 . . . . 2 . . . . . . . . . . 1 . 2 1 . 1 1 1 . . 3 . Assault 26 | . . . 1 1 . . . . 1 . . . . . . . . . . . . 1 . . . . . . . . . 12 . 5 5 . Garrison 3 | . . . . . . . . . . . . . . . . . . . . . . . . . . . . . . . . . . 3 . . Intercept . | . . . . . . . . . . . . . . . . . . . . . . . . . . . . . . . . . . . . . Searches Triggered 6 | . . . . . . . . . . . . . . 2 . 1 . . . . 2 . . . . . . 1 . . . . . . . . Unchained Authorized 2 | . . . . . . . . . . . . . . . . 1 . . . . 1 . . . . . . . . . . . . . . . Data Miner Redirects 3 | . . . . . . . . . . . . . . 2 . . . . . . . 1 . . . . . . . . . . . . . . Construction Impeded . | . . . . . . . . . . . . . . . . . . . . . . . . . . . . . . . . . . . . . Haulers Reinforced . | . . . . . . . . . . . . . . . . . . . . . . . . . . . . . . . . . . . . . Active Scanning Responses . | . . . . . . . . . . . . . . . . . . . . . . . . . . . . . . . . . . . . . Cargo Convoy Interrupts 1 | . . . . . . . . . . . . . . 1 . . . . . . . . . . . . . . . . . . . . . . Stealth | -11 -10 -10 -9 -9 -9 -9 -6 -6 -6 -6 -6 -6 -5 -5 -5 -5 -5 -5 -5 -4 -4 -4 -4 -4 -4 -4 -3 -3 -3 -2 -2 -2 -2 -1 -1 -1 --------- Run | Yrd Mat Min Mat Sto Rec Scr Fac Was Fac Low Low Dat Pro Fac Gar Fac Upp Upp Zhi Pro Fac Ext Cet Arc Hub Gar Res Tes Gar Res Qua Sec Gar Acc Com Ac0 Distress Signals 35 | . 1 . 2 2 . . 2 . 2 . . . . 6 . . . . . 1 . 2 1 . . . 7 1 . . 1 2 . 1 4 . Communications Jammed 24 | . . . . . . . . . . . . . . . . . . . . . 3 18 . . 3 . . . . . . . . . . . Distress Signals 24 | . . . . . . . . . . . . . . . . . . . . . 3 18 . . 3 . . . . . . . . . . . Times Spotted 763 | . 29 11 63 16 1 . 37 6 45 10 7 . 7 74 16 49 5 7 . 4 38 52 11 7 12 12 29 35 22 14 12 45 34 . 49 4 Peak Tracking Total 14 | . 6 5 10 4 1 . 6 2 9 4 4 . 7 14 10 12 4 4 . 3 9 11 5 2 6 4 7 10 12 8 7 11 8 . 12 4 Tactical Retreats 151 | . 4 3 10 2 . . 15 1 15 3 1 . . 22 3 11 1 . . . 11 9 1 . 2 . 8 6 2 2 1 8 2 . 8 . ECM-based Alert Blocks 51 | . . . . . . . 11 . . . . . . 32 4 . . . . . 4 . . . . . . . . . . . . . . . Traps | -11 -10 -10 -9 -9 -9 -9 -6 -6 -6 -6 -6 -6 -5 -5 -5 -5 -5 -5 -5 -4 -4 -4 -4 -4 -4 -4 -3 -3 -3 -2 -2 -2 -2 -1 -1 -1 ------- Run | Yrd Mat Min Mat Sto Rec Scr Fac Was Fac Low Low Dat Pro Fac Gar Fac Upp Upp Zhi Pro Fac Ext Cet Arc Hub Gar Res Tes Gar Res Qua Sec Gar Acc Com Ac0 Traps Triggered 44 | . . . . 1 . . 3 . 3 . . . . 3 1 4 . . . . 1 5 . . . 3 . 2 4 . 3 1 3 4 3 . Indirectly . | . . . . . . . . . . . . . . . . . . . . . . . . . . . . . . . . . . . . . Trap Hack Attempts 115 | . . . . . . . 42 . 63 . . . . . . . . . . . . . . . . . 10 . . . . . . . . . Triggered 1 | . . . . . . . . . 1 . . . . . . . . . . . . . . . . . . . . . . . . . . . Disarmed 2 | . . . . . . . . . . . . . . . . . . . . . 1 . . . . . . 1 . . . . . . . . Reprogrammed 37 | . . . 10 . . . 4 . 5 . . . . . . . . . . . 10 2 . . 4 . 2 . . . . . . . . . Reused 5 | . . . 2 . . . . . . 2 . . . . . . . . . . 1 . . . . . . . . . . . . . . . Traps Extracted 4 | . . . . . . . 4 . . . . . . . . . . . . . . . . . . . . . . . . . . . . . Installed 6 | . . 3 . . . . . . . 3 . . . . . . . . . . . . . . . . . . . . . . . . . . Triggered 5 | . . . 2 . . . . . . 2 . . . . . . . . . . 1 . . . . . . . . . . . . . . . Most Traps Carried 4 | . . . . . . . 4 4 4 4 4 4 4 4 4 4 4 4 4 4 4 4 4 4 4 4 4 4 4 4 4 4 . . . . Machines | -11 -10 -10 -9 -9 -9 -9 -6 -6 -6 -6 -6 -6 -5 -5 -5 -5 -5 -5 -5 -4 -4 -4 -4 -4 -4 -4 -3 -3 -3 -2 -2 -2 -2 -1 -1 -1 ---------- Run | Yrd Mat Min Mat Sto Rec Scr Fac Was Fac Low Low Dat Pro Fac Gar Fac Upp Upp Zhi Pro Fac Ext Cet Arc Hub Gar Res Tes Gar Res Qua Sec Gar Acc Com Ac0 Machines Disabled 71 | . . . . 2 . . 2 . 10 . . . . 1 3 1 . . . . 1 2 . 1 6 3 2 2 1 . 5 14 5 3 6 1 Max in Single Turn 3 | . . . . 1 . . 1 . 3 . . . . 1 2 1 . . . . 1 1 . . . 2 1 1 1 . 1 2 1 1 1 1 Garrison Access 12 | . . . . 1 . . 1 . 4 . . . . 1 . 2 . . . . 1 . . . . . . . . . 1 . . 1 . . Garrison Relay 4 | . . . . . . . . . . . . . . . 1 . . . . . . . . . . 2 . . 1 . . . . . . . Phase Generator 1 | . . . . . . . . . . . . . . . 1 . . . . . . . . . . . . . . . . . . . . . Network Hub 3 | . . . . . . . . . . . . . . . . . . . . . . . . . 3 . . . . . . . . . . . Machines Repaired . | . . . . . . . . . . . . . . . . . . . . . . . . . . . . . . . . . . . . . Machines Dismantled . | . . . . . . . . . . . . . . . . . . . . . . . . . . . . . . . . . . . . . Machines Sabotaged 2 | . . . . . . . . . . . . . . . . . . . . . . . . . 2 . . . . . . . . . . . Overloaded Fab Kills . | . . . . . . . . . . . . . . . . . . . . . . . . . . . . . . . . . . . . . Hacking | -11 -10 -10 -9 -9 -9 -9 -6 -6 -6 -6 -6 -6 -5 -5 -5 -5 -5 -5 -5 -4 -4 -4 -4 -4 -4 -4 -3 -3 -3 -2 -2 -2 -2 -1 -1 -1 --------- Run | Yrd Mat Min Mat Sto Rec Scr Fac Was Fac Low Low Dat Pro Fac Gar Fac Upp Upp Zhi Pro Fac Ext Cet Arc Hub Gar Res Tes Gar Res Qua Sec Gar Acc Com Ac0 Machines Accessed 263 | . 9 . 16 11 11 4 26 . 40 3 . 4 1 25 . 14 . . 4 . 13 10 1 . 11 2 15 12 . 1 11 10 2 3 4 . Terminals 149 | . 6 . 12 8 6 . 13 . 17 1 . . 1 13 . 4 . . . . 5 8 1 . 10 2 7 10 . 1 8 8 2 2 4 . Fabricators 6 | . . . . . . . 2 . 4 . . . . . . . . . . . . . . . . . . . . . . . . . . . Repair Stations 14 | . 1 . 1 2 . . 3 . 4 . . . . 1 . 1 . . . . 1 . . . . . . . . . . . . . . . Recycling Units 45 | . 2 . 1 . 5 . 4 . 8 . . . . 6 . 6 . . . . 6 2 . . . . 4 . . . . . . 1 . . Scanalyzers 17 | . . . 2 . . . 2 . 3 . . . . 2 . 1 . . . . . . . . . . 3 1 . . 2 1 . . . . Garrison Access 18 | . . . . 1 . . 2 . 4 . . . . 3 . 2 . . . . 1 . . . 1 . 1 1 . . 1 1 . . . . Total Hacks 821 | . 29 . 72 31 21 32 71 . 98 4 . 29 4 49 . 26 . . 17 . 43 32 1 . 44 10 47 54 . 1 41 36 7 9 13 . Successful 512 | . 16 . 46 18 11 32 37 . 55 4 . 29 4 27 . 17 . . 17 . 36 24 1 . 27 4 28 30 . 1 19 21 1 3 4 . Failed 306 | . 13 . 25 13 10 . 34 . 43 . . . . 22 . 8 . . . . 7 8 . . 17 6 18 24 . . 22 15 6 6 9 . Catastrophic 40 | . 1 . 1 1 1 . 7 . 4 . . . . . . . . . . . . . . . 1 3 1 4 . . 3 2 3 3 5 . Database Lockouts 3 | . . . 1 . . . . . . . . . . . . 1 . . . . . . . . . . 1 . . . . . . . . . Manual 467 | . 25 . 31 19 18 1 47 . 41 . . . . 35 . 17 . . . . 30 21 1 . 38 9 35 28 . 1 27 25 3 9 6 . Terminals 523 | . 23 . 44 20 15 . 44 . 51 2 . . 4 30 . 13 . . . . 34 30 1 . 41 10 23 45 . 1 32 34 7 6 13 . Fabricators 18 | . . . . . . . 5 . 13 . . . . . . . . . . . . . . . . . . . . . . . . . . . Repair Stations 37 | . 4 . 6 7 . . 4 . 11 . . . . 2 . 1 . . . . 2 . . . . . . . . . . . . . . . Recycling Units 57 | . 2 . 1 . 6 . 6 . 8 . . . . 7 . 8 . . . . 6 2 . . . . 8 . . . . . . 3 . . Scanalyzers 70 | . . . 21 . . . 10 . 9 . . . . 3 . 2 . . . . . . . . . . 9 7 . . 8 1 . . . . Garrison Access 36 | . . . . 4 . . 2 . 6 . . . . 7 . 2 . . . . 1 . . . 3 . 7 2 . . 1 1 . . . . Terminal Hacks 204 | . 2 . 11 3 . 32 7 . 15 4 . 29 4 1 . 4 . . 17 . 18 11 1 . 10 4 5 13 . . 5 6 . . 2 . Record 47 | . . . . . . 23 . . . 3 . 11 4 . . . . . 5 . . . . . . . . . . . 1 . . . . . Part Schematic 22 | . . . . . . . 1 . 2 . . 11 . . . . . . 4 . 2 1 . . . . . 1 . . . . . . . . Robot Schematic 4 | . . . . . . . . . . . . 4 . . . . . . . . . . . . . . . . . . . . . . . . Robot Analysis 17 | . 2 . . . . 8 1 . . . . . . . . 1 . . 4 . . . . . . . . . . . 1 . . . . . Prototype ID Bank 30 | . . . 5 1 . . 1 . 4 . . 3 . . . 1 . . 4 . 1 2 . . 1 . 2 2 . . . 3 . . . . Open Door 6 | . . . . 2 . . . . . 1 . . . . . . . . . . . . 1 . . . . . . . 1 1 . . . . Branch Access Points 2 | . . . . . . . . . . . . . . . . . . . . . 1 . . . . . 1 . . . . . . . . . Emergency Access Points 1 | . . . . . . . . . . . . . . . . . . . . . . . . . . 1 . . . . . . . . . . Terminal Index 5 | . . . . . . . 1 . 1 . . . . . . . . . . . 1 1 . . 1 . . . . . . . . . . . Fabricator Index 1 | . . . . . . . . . 1 . . . . . . . . . . . . . . . . . . . . . . . . . . . Garrison Index 1 | . . . . . . . . . . . . . . 1 . . . . . . . . . . . . . . . . . . . . . . Unreport Threat 14 | . . . 1 . . . 2 . 4 . . . . . . . . . . . 4 . . . 1 2 . . . . . . . . . . Locate Traps 16 | . . . 1 . . . 1 . 2 . . . . . . . . . . . 2 3 . . 2 . 2 3 . . . . . . . . Disarm Traps 2 | . . . . . . . . . . . . . . . . . . . . . 1 . . . . . . 1 . . . . . . . . Reprogram Traps 7 | . . . 2 . . . . . . . . . . . . . . . . . 2 2 . . 1 . . . . . . . . . . . Extermination Status 1 | . . . . . . . . . . . . . . . . . . . . . . . . . . . . 1 . . . . . . . . Recall Investigation 1 | . . . . . . . . . . . . . . . . . . . . . . . . . . . . 1 . . . . . . . . Recall Extermination 1 | . . . . . . . . . . . . . . . . 1 . . . . . . . . . . . . . . . . . . . . Zone Layout 22 | . . . 2 . . . . . 1 . . . . . . 1 . . . . 4 2 . . 4 . . 4 . . 2 2 . . . . Garrison Registry 1 | . . . . . . . . . . . . . . . . . . . . . . . . . . 1 . . . . . . . . . . Proto ID Catalog 1 | . . . . . . 1 . . . . . . . . . . . . . . . . . . . . . . . . . . . . . . Disengage Seal 2 | . . . . . . . . . . . . . . . . . . . . . . . . . . . . . . . . . . . 2 . Fabricator Hacks 6 | . . . . . . . 2 . 4 . . . . . . . . . . . . . . . . . . . . . . . . . . . Load Schematic 4 | . . . . . . . 1 . 3 . . . . . . . . . . . . . . . . . . . . . . . . . . . Build 2 | . . . . . . . 1 . 1 . . . . . . . . . . . . . . . . . . . . . . . . . . . Repair Station Hacks 21 | . 4 . 4 4 . . 2 . 4 . . . . 1 . . . . . . 2 . . . . . . . . . . . . . . . Scan Component 11 | . 2 . 2 2 . . . . 3 . . . . 1 . . . . . . 1 . . . . . . . . . . . . . . . Repair 8 | . 2 . 2 2 . . . . 1 . . . . . . . . . . . 1 . . . . . . . . . . . . . . . Refit 2 | . . . . . . . 2 . . . . . . . . . . . . . . . . . . . . . . . . . . . . . Recycling Unit Hacks . | . . . . . . . . . . . . . . . . . . . . . . . . . . . . . . . . . . . . . Scanalyzer 48 | . . . 18 . . . 8 . 5 . . . . 1 . 1 . . . . . . . . . . 7 4 . . 3 1 . . . . Insert Component 15 | . . . 8 . . . 3 . 1 . . . . . . . . . . . . . . . . . 2 . . . . 1 . . . . Analyze 12 | . . . 8 . . . 2 . 1 . . . . . . . . . . . . . . . . . 1 . . . . . . . . . Retrieve Study 21 | . . . 2 . . . 3 . 3 . . . . 1 . 1 . . . . . . . . . . 4 4 . . 3 . . . . . Garrison Access Hacks 14 | . . . . . . . 1 . 3 . . . . 2 . 2 . . . . 1 . . . 1 . 1 1 . . 1 1 . . . . Unlock Access 5 | . . . . . . . . . . . . . . 1 . . . . . . . . . . 1 . 1 1 . . . 1 . . . . Seal Access 9 | . . . . . . . 1 . 3 . . . . 1 . 2 . . . . 1 . . . . . . . . . 1 . . . . . Unauthorized Hacks 219 | . 10 . 13 11 11 . 17 . 24 . . . . 22 . 10 . . . . 15 13 . . 16 . 15 12 . 1 10 13 1 3 2 . Terminals 154 | . 8 . 10 9 6 . 10 . 9 . . . . 15 . 4 . . . . 9 11 . . 15 . 8 11 . 1 10 13 1 2 2 . Track 18 | . 1 . . . . . 2 . 1 . . . . . . . . . . . 2 1 . . 5 . 1 3 . . . 2 . . . . Assimilate 5 | . . . 1 . . . . . . . . . . 3 . . . . . . . . . . . . . . . . . 1 . . . . Botnet 46 | . 2 . 4 4 1 . 3 . 3 . . . . 5 . 2 . . . . 2 4 . . 1 . 2 1 . . 4 4 . 2 2 . Disrupt 1 | . . . . . . . . . . . . . . . . . . . . . . . . . . . . 1 . . . . . . . . Operators 1 | . . . . . . . . . . . . . . . . . . . . . . . . . . . . 1 . . . . . . . . Skim 78 | . 5 . 5 5 5 . 5 . 5 . . . . 7 . 2 . . . . 5 6 . . 5 . 5 5 . 1 6 6 . . . . Sabotage 4 | . . . . . . . . . . . . . . . . . . . . . . . . . 4 . . . . . . . . . . . Override 1 | . . . . . . . . . . . . . . . . . . . . . . . . . . . . . . . . . 1 . . . Fabricators 6 | . . . . . . . 2 . 4 . . . . . . . . . . . . . . . . . . . . . . . . . . . Prioritize 4 | . . . . . . . 1 . 3 . . . . . . . . . . . . . . . . . . . . . . . . . . . Recompile 2 | . . . . . . . 1 . 1 . . . . . . . . . . . . . . . . . . . . . . . . . . . Repair Stations 5 | . . . . 1 . . 1 . 2 . . . . . . 1 . . . . . . . . . . . . . . . . . . . . Patch 5 | . . . . 1 . . 1 . 2 . . . . . . 1 . . . . . . . . . . . . . . . . . . . . Recycling Units 44 | . 2 . 1 . 5 . 4 . 8 . . . . 6 . 5 . . . . 6 2 . . . . 4 . . . . . . 1 . . Tunnel 8 | . 2 . 1 . 5 . . . . . . . . . . . . . . . . . . . . . . . . . . . . . . . Fedlink 35 | . . . . . . . 4 . 8 . . . . 6 . 5 . . . . 6 2 . . . . 4 . . . . . . . . . Scraphulk 1 | . . . . . . . . . . . . . . . . . . . . . . . . . . . . . . . . . . 1 . . Scanalyzers 3 | . . . 2 . . . . . . . . . . . . . . . . . . . . . . . 1 . . . . . . . . . Extract 3 | . . . 2 . . . . . . . . . . . . . . . . . . . . . . . 1 . . . . . . . . . Garrison Access 7 | . . . . 1 . . . . 1 . . . . 1 . . . . . . . . . . 1 . 2 1 . . . . . . . . Broadcast 2 | . . . . . . . . . . . . . . . . . . . . . . . . . . . 1 1 . . . . . . . . Reprogram 2 | . . . . . . . . . . . . . . 1 . . . . . . . . . . 1 . . . . . . . . . . . Watchers 1 | . . . . . . . . . . . . . . . . . . . . . . . . . . . 1 . . . . . . . . . Jam 2 | . . . . 1 . . . . 1 . . . . . . . . . . . . . . . . . . . . . . . . . . . Data Cores Recovered 7 | . . . . . . . 2 . 2 . . . . 1 . . . . . . . 1 . . . . 1 . . . . . . . . . Used 3 | . . . . . . . 1 . . . . . . . . . . . . . . 1 . . . . 1 . . . . . . . . . Hacking Detections 150 | . 7 . 12 9 7 . 18 . 25 1 . . . 17 . 7 . . . . 3 5 . . 5 2 6 9 . . 7 6 1 1 2 . Full Trace Events 17 | . . . 3 1 . . 2 . 6 . . . . 2 . 2 . . . . . . . . 1 . . . . . . . . . . . Feedback Events 2 | . . . . . . . 1 . 1 . . . . . . . . . . . . . . . . . . . . . . . . . . . Corruption 1 | . . . . . . . . . 1 . . . . . . . . . . . . . . . . . . . . . . . . . . . Hackware Fried 1 | . . . . . . . 1 . . . . . . . . . . . . . . . . . . . . . . . . . . . . . Feedback Blocked . | . . . . . . . . . . . . . . . . . . . . . . . . . . . . . . . . . . . . . Robot Schematics Acquired 4 | . . . . . . . . . . . . 4 . . . . . . . . . . . . . . . . . . . . . . . . Robots Built . | . . . . . . . . . . . . . . . . . . . . . . . . . . . . . . . . . . . . . Authchips . | . . . . . . . . . . . . . . . . . . . . . . . . . . . . . . . . . . . . . Time . | . . . . . . . . . . . . . . . . . . . . . . . . . . . . . . . . . . . . . Total Robot Build Rating . | . . . . . . . . . . . . . . . . . . . . . . . . . . . . . . . . . . . . . Part Schematics Acquired 41 | . . . 14 . . . 3 . 3 . . 11 . . . . . . 4 . 1 1 . . . . 4 . . . . . . . . . Parts Built 2 | . . . . . . . 1 . 1 . . . . . . . . . . . . . . . . . . . . . . . . . . . Authchips 2 | . . . . . . . 1 . 1 . . . . . . . . . . . . . . . . . . . . . . . . . . . Time 101 | . . . . . . . 25 . 76 . . . . . . . . . . . . . . . . . . . . . . . . . . . Total Part Build Rating 10 | . . . . . . . 5 . 5 . . . . . . . . . . . . . . . . . . . . . . . . . . . Part Studies Acquired 21 | . . . 2 . . . 3 . 3 . . . . 1 . 1 . . . . . . . . . . 4 4 . . 3 . . . . . Parts Repaired 8 | . 2 . 2 2 . . . . 1 . . . . . . . . . . . 1 . . . . . . . . . . . . . . . Time 269 | . 52 . 77 89 . . . . 19 . . . . . . . . . . . 32 . . . . . . . . . . . . . . . Parts Recycled . | . . . . . . . . . . . . . . . . . . . . . . . . . . . . . . . . . . . . . Recycled Matter . | . . . . . . . . . . . . . . . . . . . . . . . . . . . . . . . . . . . . . Retrieved Matter . | . . . . . . . . . . . . . . . . . . . . . . . . . . . . . . . . . . . . . Retrieved Components . | . . . . . . . . . . . . . . . . . . . . . . . . . . . . . . . . . . . . . Parts Scanalyzed 13 | . . . 8 . . . 3 . 1 . . . . . . . . . . . . . . . . . 1 . . . . . . . . . Part Schematics Acquired 12 | . . . 8 . . . 2 . 1 . . . . . . . . . . . . . . . . . 1 . . . . . . . . . Parts Damaged . | . . . . . . . . . . . . . . . . . . . . . . . . . . . . . . . . . . . . . Bothacking | -11 -10 -10 -9 -9 -9 -9 -6 -6 -6 -6 -6 -6 -5 -5 -5 -5 -5 -5 -5 -4 -4 -4 -4 -4 -4 -4 -3 -3 -3 -2 -2 -2 -2 -1 -1 -1 ------------ Run | Yrd Mat Min Mat Sto Rec Scr Fac Was Fac Low Low Dat Pro Fac Gar Fac Upp Upp Zhi Pro Fac Ext Cet Arc Hub Gar Res Tes Gar Res Qua Sec Gar Acc Com Ac0 Used RIF Installer 3 | . . . . . . . . . . . . . . . 1 . . . . . . . . . . 1 . . 1 . . . . . . . Hotswap 1 | . . . . . . . . . . . . . . . . . . . . . . . . . . 1 . . . . . . . . . . Patrol Navigation 1 | . . . . . . . . . . . . . . . . . . . . . . . . . . . . . 1 . . . . . . . Robots Hacked 15 | . . . . . . . 1 3 . . . . . . . . . . . . . . . 1 . . 5 2 . 1 2 . . . . . Non-combat 10 | . . . . . . . 1 . . . . . . . . . . . . . . . . 1 . . 5 . . 1 2 . . . . . Combat 3 | . . . . . . . . 2 . . . . . . . . . . . . . . . . . . . 1 . . . . . . . . Robot Hacks Applied 15 | . . . . . . . 1 2 . . . . . . . . . . . . . . . 1 . . 5 1 . 3 2 . . . . . parse_system 4 | . . . . . . . . 2 . . . . . . . . . . . . . . . . . . 1 . . . 1 . . . . . find_chute 1 | . . . . . . . 1 . . . . . . . . . . . . . . . . . . . . . . . . . . . . . drop_inventory 4 | . . . . . . . . . . . . . . . . . . . . . . . . . . . 3 . . . 1 . . . . . ignore_parts 1 | . . . . . . . . . . . . . . . . . . . . . . . . . . . 1 . . . . . . . . . check_alert 1 | . . . . . . . . . . . . . . . . . . . . . . . . 1 . . . . . . . . . . . . purge_threat 2 | . . . . . . . . . . . . . . . . . . . . . . . . . . . . . . 2 . . . . . . disable_scanner 1 | . . . . . . . . . . . . . . . . . . . . . . . . . . . . 1 . . . . . . . . formatsys_low 1 | . . . . . . . . . . . . . . . . . . . . . . . . . . . . . . 1 . . . . . . Manual 3 | . . . . . . . . 2 . . . . . . . . . . . . . . . . . . . 1 . . . . . . . . Relay Couplers Released 18 | . . . . . . . . . . . . . . . 4 . . . . . . . . . . 8 . . 4 . . . . 2 . . Machine Destruction 18 | . . . . . . . . . . . . . . . 4 . . . . . . . . . . 8 . . 4 . . . . 2 . . Attached 3 | . . . . . . . . . . . . . . . . . . . . . . . . . . 1 . . 1 1 . . . . . . Fabnet Peak Effective % . | . . . . . . . . . . . . . . . . . . . . . . . . . . . . . . . . . . . . . Robots Rewired 20 | . . . . . . . 1 2 . 4 . . . . . . . . . . 1 11 . . . . . . . . . . 1 . . . Allies Hacked 1 | . . . . . . . . . . . . . . . . . . . . . . . . . . . . . . 1 . . . . . . Hacks Repelled . | . . . . . . . . . . . . . . . . . . . . . . . . . . . . . . . . . . . . . Allies | -11 -10 -10 -9 -9 -9 -9 -6 -6 -6 -6 -6 -6 -5 -5 -5 -5 -5 -5 -5 -4 -4 -4 -4 -4 -4 -4 -3 -3 -3 -2 -2 -2 -2 -1 -1 -1 -------- Run | Yrd Mat Min Mat Sto Rec Scr Fac Was Fac Low Low Dat Pro Fac Gar Fac Upp Upp Zhi Pro Fac Ext Cet Arc Hub Gar Res Tes Gar Res Qua Sec Gar Acc Com Ac0 Total Allies 185 | . . . 1 . . . 1 20 . 4 . . . 2 . . . . . . 1 20 5 . 2 . . . 2 1 . 1 1 30 94 . Largest Group 29 | . . . 1 . . . 1 18 11 4 4 . . 1 . . . . . . 1 10 13 13 8 2 . . 2 1 . 1 1 6 29 . Highest-Rated Group 1057 | . . . 10 . . . 32 670 529 90 90 . . 26 . . . . . . 56 555 949 936 515 112 . . 92 10 . 45 29 198 1057 . Highest-Rated Ally 234 | . . . 10 . . . 32 141 141 30 30 . . 26 . . . . . . 56 159 159 159 96 56 . . 46 10 . 45 29 139 234 . Initial UFD Resources 149 | . . . . . . . 24 42 42 58 58 58 62 62 84 84 94 94 94 97 97 119 123 123 123 123 125 143 143 147 147 147 147 149 144 144 Total Orders 9 | . . . . . . . . . . . . . . . . . 2 . . . . . 4 2 . . . . . . 1 . . . . . STAY 1 | . . . . . . . . . . . . . . . . . . . . . . . 1 . . . . . . . . . . . . . ROAM 2 | . . . . . . . . . . . . . . . . . . . . . . . 1 1 . . . . . . . . . . . . FOLLOW 3 | . . . . . . . . . . . . . . . . . . . . . . . 2 1 . . . . . . . . . . . . EXPLORE 2 | . . . . . . . . . . . . . . . . . 1 . . . . . . . . . . . . . 1 . . . . . RETURN 1 | . . . . . . . . . . . . . . . . . 1 . . . . . . . . . . . . . . . . . . . Ally Attacks 924 | . . . . . . . 2 101 89 6 14 . . . . . . . . . 3 112 45 30 58 39 . . 10 . . . . 42 373 . Total Damage 28073 | . . . . . . . 82 3734 2751 99 356 . . . . . . . . . 144 2692 1278 1084 1582 1567 . . 250 . . . . 2518 9936 . Kills 146 | . . . . . . . 1 8 30 . 3 . . . . . . . . . 1 18 7 6 7 7 . . 2 . . . . 16 40 . Allies Corrupted 8 | . . . . . . . . . . . 1 . . . . . . . . . . 1 . . 1 . . . . . . . . . 5 . Allies Melted 1 | . . . . . . . . . 1 . . . . . . . . . . . . . . . . . . . . . . . . . . . Intel | -11 -10 -10 -9 -9 -9 -9 -6 -6 -6 -6 -6 -6 -5 -5 -5 -5 -5 -5 -5 -4 -4 -4 -4 -4 -4 -4 -3 -3 -3 -2 -2 -2 -2 -1 -1 -1 ------- Run | Yrd Mat Min Mat Sto Rec Scr Fac Was Fac Low Low Dat Pro Fac Gar Fac Upp Upp Zhi Pro Fac Ext Cet Arc Hub Gar Res Tes Gar Res Qua Sec Gar Acc Com Ac0 Active Infowar (turns) 14744 | 7 641 237 1096 71 . . 1154 251 1119 658 187 75 115 1240 201 675 5 70 1 . 734 1115 290 1019 270 268 1162 365 239 210 623 234 . 92 320 . Optics 6262 | . . . . . . . . . . . . . . . . . . . . . 463 1115 290 1019 270 268 1162 365 239 210 623 234 . . 4 . Sensors 2119 | . . . . . . . 851 251 566 . . . . . . . 5 70 . . . . . . . . . . . . 376 . . . . . IFF 3392 | . . . . . . . . . 447 645 187 75 115 1197 81 645 . . . . . . . . . . . . . . . . . . . . Terrain 4316 | . . . . . . . . . 28 658 150 75 115 1240 188 549 . . . . 548 763 . . . . . . . . 2 . . . . . Structural 1508 | . . . . . . . 795 152 403 . . . . . . 77 . . . . . . . . . . . . . . 81 . . . . . Seismic 2728 | 7 641 237 1096 71 . . 183 . . . . . . . . . . . . . 115 . . . . . . . . . 253 125 . . . . Triangulation 579 | . . . . . . . . . . . . . . . . . . . . . . . . . . . 577 . . . . . . 2 . . Cloaking 1559 | . . . . . . . . 82 . . . . . . 173 . . 11 . . . . . . . . 267 364 50 . 166 46 . 84 316 . Jamming 1607 | . . . . . . . . . . . . . . . . . . . . . 420 827 . . 62 9 285 . . . . . . 4 . . ECM 1499 | . . . . . . . 307 251 129 . . . . 473 148 66 . . 1 . 122 . . . . . . . . . . . . 2 . . Robot Analysis Total 16 | . 2 . . . . 8 1 . . . . . . . . 1 . . 4 . . . . . . . . . . . . . . . . . Derelict Logs Recovered 5 | . . 3 . . . . . . . 1 . . . . . . . . . 1 . . . . . . . . . . . . . . . . Drone Launches 4 | . . . . . . . . . . . . . . . . . 2 . . . . . . . . . . . . . 2 . . . . . Drone Recoveries 2 | . . . . . . . . . . . . . . . . . 2 . . . . . . . . . . . . . . . . . . . Exploration | -11 -10 -10 -9 -9 -9 -9 -6 -6 -6 -6 -6 -6 -5 -5 -5 -5 -5 -5 -5 -4 -4 -4 -4 -4 -4 -4 -3 -3 -3 -2 -2 -2 -2 -1 -1 -1 ------------- Run | Yrd Mat Min Mat Sto Rec Scr Fac Was Fac Low Low Dat Pro Fac Gar Fac Upp Upp Zhi Pro Fac Ext Cet Arc Hub Gar Res Tes Gar Res Qua Sec Gar Acc Com Ac0 Turns Passed 18895 | 45 641 237 1096 606 586 432 1158 251 1495 658 238 75 115 1247 201 709 63 118 76 240 759 1115 290 1019 270 268 1162 365 239 210 623 401 502 489 837 59 Spaces Moved 33466 | 37 720 480 1690 734 607 1283 2469 354 3433 1014 555 79 395 2606 354 1729 189 263 150 403 1553 1666 184 408 598 443 1810 839 327 471 1424 952 651 1040 1502 54 Core 525 | 37 249 . . . . . . . . . . . . . . . . . . . . . . 238 . . 1 . . . . . . . . . Treads . | . . . . . . . . . . . . . . . . . . . . . . . . . . . . . . . . . . . . . Legs 3538 | . . . . . . . . . . . . . . . . . . . . . . . . . . . . . . . . 305 651 1026 1502 54 Wheels . | . . . . . . . . . . . . . . . . . . . . . . . . . . . . . . . . . . . . . Hover 1535 | . . . . . . . . . . . . . . . . . . . . . . . . . . . 1535 . . . . . . . . . Flight 27704 | . 471 480 1690 734 607 1283 2469 354 3433 1014 555 79 395 2606 354 1729 189 263 150 403 1553 1666 184 170 598 443 274 839 327 471 1424 497 . . . . Fastest Speed 12 | 50 37 37 26 28 29 29 20 20 12 21 21 24 12 13 20 26 30 30 32 32 20 21 23 23 23 20 32 32 32 32 25 21 30 30 30 30 Average Speed 30 | 50 44 37 30 28 29 30 23 20 21 21 23 24 23 21 25 28 30 31 32 32 23 24 24 221 23 31 47 32 32 32 26 28 30 30 30 30 Slowest Speed 350 | 50 120 37 37 107 29 31 25 21 25 24 25 24 24 107 32 119 30 32 32 32 109 107 101 350 23 192 100 32 32 110 100 117 90 30 90 30 Overloaded Moves 46 | . . . . . . . . . 4 . . . 7 9 26 . . . . . . . . . . . . . . . . . . . . . Propulsion Burnouts . | . . . . . . . . . . . . . . . . . . . . . . . . . . . . . . . . . . . . . Robots Hopped 171 | . 7 10 22 3 6 . 11 . 18 . 1 . . 14 6 17 . . . . 11 11 . . 2 3 . 13 . 7 6 3 . . . . Potential Cave-ins 11 | . . . . . . . . . . . . . . . . . . . . . . . . . . . . . . . . 9 . . 2 . Cave-ins Triggered . | . . . . . . . . . . . . . . . . . . . . . . . . . . . . . . . . . . . . . Teleports 2 | . . . . . . . . . . . . . . . . . . . . . . . . . . . . . . . . . . . 1 1 Microwarps 17 | . . . . . . . . . . . . . . . . . . . . . . . . . . . . . . . . 16 . 1 . . Exploration Rate (%) 64 | 3 95 90 93 67 98 86 66 96 89 89 73 69 64 67 42 53 47 42 60 72 42 84 72 95 65 63 55 88 40 20 98 61 73 30 52 4 Regions Visited 36 Branch Regions 21 Pre-discovered Areas 25 | . 3 . 3 1 5 5 2 . . 1 . 1 . . . . . . 3 . . . . . . . . 1 . . . . . . . . Known Exits Taken 21 | . 1 1 1 1 1 . . . 1 1 1 . 1 1 . 1 1 1 . 1 1 . 1 . 1 . 1 1 . . 1 1 . . . . Unknown Exits Taken 9 | 1 . . . . . 1 . . . . . 1 . . . . . . 1 . . 1 . 1 . . . . . 1 . . . 1 1 . Scrap Searched 22 | . . 1 . . . 8 . . . 3 3 . 3 . . . 1 2 . 1 . . . . . . . . . . . . . . . . Spaces Dug 388 | . . . 24 3 . . 25 . 63 7 . . 1 57 6 30 1 3 . 1 25 3 . . 3 2 12 10 2 . 14 37 2 36 21 . Terrain Destroyed 1315 | . . 8 53 3 . . 25 . 106 7 . . 1 57 82 30 1 55 . 74 50 92 . . 3 31 12 13 3 17 14 94 141 44 201 98 Melee 282 | . . . 11 3 . . 25 . 63 7 . . 1 57 6 30 1 3 . 1 25 3 . . 3 2 12 10 2 . 14 3 . . . . Projectile 557 | . . . . . . . . . . . . . . . . . . . . . . . . . . . . 3 1 1 . 72 141 40 201 98 AOE 476 | . . 8 42 . . . . . 43 . . . . . 76 . . 52 . 73 25 89 . . . 29 . . . 16 . 19 . 4 . . Terrain Rammed . | . . . . . . . . . . . . . . . . . . . . . . . . . . . . . . . . . . . . . Walls Destroyed . | . . . . . . . . . . . . . . . . . . . . . . . . . . . . . . . . . . . . . Machines Disabled . | . . . . . . . . . . . . . . . . . . . . . . . . . . . . . . . . . . . . . Actions | -11 -10 -10 -9 -9 -9 -9 -6 -6 -6 -6 -6 -6 -5 -5 -5 -5 -5 -5 -5 -4 -4 -4 -4 -4 -4 -4 -3 -3 -3 -2 -2 -2 -2 -1 -1 -1 --------- Run | Yrd Mat Min Mat Sto Rec Scr Fac Was Fac Low Low Dat Pro Fac Gar Fac Upp Upp Zhi Pro Fac Ext Cet Arc Hub Gar Res Tes Gar Res Qua Sec Gar Acc Com Ac0 Total 39970 | 49 891 516 2080 1067 1006 1323 2900 533 3966 1426 635 134 413 3130 430 1826 192 290 166 499 1845 2182 420 504 712 535 2031 899 425 512 1613 928 835 1184 1778 95 Wait 4292 | . 77 17 237 264 404 11 258 162 314 370 63 56 16 402 56 22 2 11 . 85 205 310 221 72 105 37 41 18 36 6 126 22 42 89 112 23 Move 32954 | 36 705 459 1647 728 594 1282 2448 353 3397 1013 552 78 394 2577 342 1695 188 262 149 402 1533 1644 183 407 593 437 1809 813 326 457 1411 811 649 1026 1501 53 Hop 157 | . 7 10 20 2 6 . 10 . 17 . 1 . . 14 5 16 . . . . 8 10 . . 2 2 . 12 . 6 6 3 . . . . Pick Up 109 | 2 2 3 7 5 . 7 8 3 10 1 1 . 1 6 . 3 . 1 1 . 1 2 1 . 1 3 14 3 2 2 1 7 2 3 4 2 Fast Attach 233 | 5 5 . 12 5 . 3 5 . 9 1 2 . . 15 . 11 1 2 5 . 25 16 2 6 . 4 28 9 2 4 9 21 1 12 13 . Attach 98 | . . . 3 4 . 1 6 1 4 3 1 . . 3 2 4 . 4 1 1 3 10 1 . 1 5 2 2 . 4 6 9 7 4 6 . Detach 63 | . . . 1 2 . . . . 1 1 . . . . 2 . . 2 . 1 4 7 2 2 . 3 6 1 . 2 6 8 6 5 1 . Swap 245 | . 8 7 20 14 . 6 27 2 20 3 3 . 1 15 4 5 . . . . 3 8 1 1 . 7 15 7 6 4 8 4 14 13 18 1 Drop 235 | . 3 7 17 9 . 13 13 2 14 2 . . . 17 . 6 . 2 4 . 13 8 1 4 . 11 22 12 1 6 2 9 4 11 18 4 Fire 647 | 6 84 10 76 25 2 . . . 3 . . . . 1 1 . . 3 . 7 5 77 8 . . 12 50 8 27 15 . 22 76 19 99 11 Melee 632 | . . . 40 9 . . 68 10 102 14 12 . 1 80 18 64 1 3 6 3 43 20 . 12 10 14 34 14 3 5 37 9 . . . . Ram . | . . . . . . . . . . . . . . . . . . . . . . . . . . . . . . . . . . . . . Kick 11 | . . . . . . . . . . . . . . . . . . . . . . . . . . . . . . . . 3 . 2 5 1 Crush . | . . . . . . . . . . . . . . . . . . . . . . . . . . . . . . . . . . . . . Escape Stasis 72 | . . . . . . . 15 . 12 . . . . . . . . . . . . 11 . . . . . . 22 . 1 . 11 . . . Rewire 101 | . . . . . . . . . . 15 . . . . . . . . . . 2 59 . . . . . . . 1 . . 23 . 1 . Trap 121 | . . 3 . . . . 42 . 63 3 . . . . . . . . . . . . . . . . 10 . . . . . . . . . Miscellaneous . | . . . . . . . . . . . . . . . . . . . . . . . . . . . . . . . . . . . . . Route ------- -11/Scrapyard -10/Materials (discovered 6 exits: *Mat x3 / *Min x2 / Sub) -10/Mines (discovered 2 exits: *Mat x2) -9/Materials (discovered 5 exits: *Mat x3 / [*Min] / *Sto) -9/Storage (discovered 2 exits: Mat / *Rec) -9/Recycling (discovered 2 exits: [*Fac] / *Scr) -9/Scraptown (discovered 2 exits: *Fac x2) -6/Factory (discovered 4 exits: *Fac x2 / *Low x2) -6/Waste -6/Factory (discovered 6 exits: *Fac x4 / *Low x2) -6/Lower Caves -6/Lower Caves (discovered 2 exits: *Fac / *Dat) -6/Data Miner -5/Proximity Caves -5/Factory (discovered 6 exits: *Fac x3 / *Upp x2 / Gar) -5/Garrison -5/Factory (discovered 4 exits: *Fac x2 / *Upp x2) -5/Upper Caves -5/Upper Caves (discovered 2 exits: Fac / *Zhi) -5/Zhirov -4/Proximity Caves -4/Factory (discovered 6 exits: *Res x2 / *Upp x2 / *Ext x2) -4/Extension (discovered 3 exits: *Res x2 / *Cet) -4/Cetus (discovered 3 exits: *Res x2 / *Arc) -4/Archives (discovered 3 exits: *Res / *Hub x2) -4/Hub_04(d) (discovered 4 exits: *Res x3 / Gar) -4/Garrison (discovered 3 exits: *Res x3) -3/Research (discovered 7 exits: *Res x3 / Arm / *Tes x2 / Gar) -3/Testing (discovered 2 exits: *Res / Gar) -3/Garrison -2/Research (discovered 2 exits: *Acc / *Qua) -2/Quarantine (discovered 3 exits: *Acc / *Sec / *Frg) -2/Section 7 (discovered 2 exits: *Acc / Gar) -2/Garrison (discovered 3 exits: *Acc x3) -1/Access -1/Command (discovered 2 exits: [Sur] / [*Ac0]) -1/Access_0 Near Former Tau Ceti IV History --------- Turn | Location | Event 8 | -11/Scrapyard | Discovered new exit (range 14) 46 | -11/Scrapyard | Entered Materials 59 | -10/Materials | Discovered new exit (range 8) 86 | -10/Materials | Discovered new exit (range 8) 106 | -10/Materials | Discovered new exit (range 7) 220 | -10/Materials | Discovered new exit (range 15) 320 | -10/Materials | Discovered new exit (range 16) 409 | -10/Materials | Learned 2 Mines zone layouts 491 | -10/Materials | Identified exit to Subcaves 491 | -10/Materials | Learned location of 1 exit from Materials 497 | -10/Materials | Core integrity fell below 50% 527 | -10/Materials | Learned 2 Storage zone layouts 529 | -10/Materials | Learned location of 2 exits from Subcaves 530 | -10/Materials | Learned 2 Mines zone layouts 544 | -10/Materials | Learned location of 1 exit from Storage 567 | -10/Materials | Identified exit to Materials 567 | -10/Materials | Identified exit to Mines 583 | -10/Materials | Repaired Flight Unit 598 | -10/Materials | Learned location of Subcaves (-10) 611 | -10/Materials | Repaired Flight Unit 687 | -10/Materials | Entered Mines 806 | -10/Mines | Discovered exit to Materials (range 8) 811 | -10/Mines | Learned Materials interactive machine intel 836 | -10/Mines | Found a hidden stash of uninstalled traps 885 | -10/Mines | Learned Materials emergency access door positions 899 | -10/Mines | Build established: Scavenger-Mutant 906 | -10/Mines | Discovered exit to Materials (range 7) 915 | -10/Mines | Learned Materials terminal intel 924 | -10/Mines | Entered Materials 924 | -9/Materials | Evolved 2 slots: Propulsion x2 925 | -9/Materials | Identified exit to Storage 926 | -9/Materials | Identified exit to Materials 928 | -9/Materials | Loaded intel: 18 interactive machine locations 929 | -9/Materials | Loaded intel: 12 terminal locations 1010 | -9/Materials | Repaired Lgt. Armor Plating 1042 | -9/Materials | Central database locked down 1122 | -9/Materials | Discovered exit to Materials (range 7) 1211 | -9/Materials | Learned location of 1 exit from Recycling 1259 | -9/Materials | Destroyed 8 combat bots 1271 | -9/Materials | Build established: Sprinter 1292 | -9/Materials | Learned Storage stockpile data 1364 | -9/Materials | Learned Storage security intel 1427 | -9/Materials | Learned location of 3 exits from Materials 1484 | -9/Materials | Repaired Imp. Flight Unit 1606 | -9/Materials | Learned Storage emergency access door positions 1627 | -9/Materials | Discovered new exit (range 12) 1723 | -9/Materials | Discovered exit to Materials (range 15) 1724 | -9/Materials | First assault squad dispatched 1801 | -9/Materials | Learned location of Recycling (-9) 1944 | -9/Materials | Core integrity fell below 50% 2020 | -9/Materials | Entered Storage 2021 | -9/Storage | Identified exit to Recycling 2095 | -9/Storage | Repaired Imp. Flight Unit? 2256 | -9/Storage | Repaired Cesium-ion Thruster? 2306 | -9/Storage | Used back door to open Recycling access 2316 | -9/Storage | Met 01-MTF 2420 | -9/Storage | First assault squad dispatched 2447 | -9/Storage | Learned Materials stockpile data 2483 | -9/Storage | Learned Materials interactive machine intel 2593 | -9/Storage | Learned Materials garrison access intel 2626 | -9/Storage | Entered Recycling 2626 | -9/Recycling | Accompanied by 1 ally (01-MTF) 2627 | -9/Recycling | Identified exit to Scraptown 2650 | -9/Recycling | Discovered new exit (range 13) 2935 | -9/Recycling | Learned Materials emergency access door positions 2978 | -9/Recycling | Learned 2 Storage zone layouts 3009 | -9/Recycling | Learned location of 3 exits from Materials 3100 | -9/Recycling | Learned Storage trap positions 3148 | -9/Recycling | Learned Materials trap positions 3180 | -9/Recycling | Scanned before Scraplab entrance 3212 | -9/Recycling | Entered Scraptown 3264 | -9/Scraptown | Heard Great Nut preacher, LISTEN AND RECITE! 3290 | -9/Scraptown | Discovered new exit (range 11) 3316 | -9/Scraptown | Visited Red Mages 3331 | -9/Scraptown | Visited Comm Corps 3334 | -9/Scraptown | Visited Awakened 3339 | -9/Scraptown | Visited UFD Registry 3339 | -9/Scraptown | Registered with UFD as "Steamdriver" 3344 | -9/Scraptown | Visited Junk Repository 3356 | -9/Scraptown | Visited Bundlers 3384 | -9/Scraptown | Visited SPCMW 3416 | -9/Scraptown | Visited Chapter 10 3420 | -9/Scraptown | Visited LU-1G1's Boring Crew 3425 | -9/Scraptown | Visited Abandonware Association 3428 | -9/Scraptown | Learned abandonware demo "REVENGE.EXE" 3428 | -9/Scraptown | Learned abandonware demo "REBOOT5.EXE" 3455 | -9/Scraptown | Visited Science Testing Area 3460 | -9/Scraptown | Visited Analyses Database 3464 | -9/Scraptown | Received an X-ray algorithm 3467 | -9/Scraptown | Ran an X-ray algorithm 3472 | -9/Scraptown | Visited Observation Area 3482 | -9/Scraptown | Visited Science Guys 3493 | -9/Scraptown | Visited DA-N13 Charitable Foundation 3494 | -9/Scraptown | Found DCF Scrap (27 items) 3509 | -9/Scraptown | Visited A0-MCA Data Center 3513 | -9/Scraptown | Given a B rating by A0-MCA 3522 | -9/Scraptown | Visited Cartography Club 3530 | -9/Scraptown | Found Surveybot 17 Chip 3544 | -9/Scraptown | Found Deep Structural Scanner 3548 | -9/Scraptown | Learned location of Zion (-7) 3548 | -9/Scraptown | Learned location of Warlord (-4) 3548 | -9/Scraptown | Learned location of Cetus (-4) 3548 | -9/Scraptown | Learned 8 Materials zone layouts 3548 | -9/Scraptown | Learned 16 Factory zone layouts 3548 | -9/Scraptown | Learned 4 Mines zone layouts 3548 | -9/Scraptown | Learned 24 Upper Caves zone layouts 3548 | -9/Scraptown | Learned 16 Proximity Caves zone layouts 3548 | -9/Scraptown | Learned 24 Proximity Caves zone layouts 3548 | -9/Scraptown | Learned location of 2 exits from Research 3548 | -9/Scraptown | Learned Factory emergency access door positions 3548 | -9/Scraptown | Learned location of 3 exits from Lower Caves 3548 | -9/Scraptown | Learned location of 3 exits from Upper Caves 3589 | -9/Scraptown | Visited CR-KLE's Repair Center 3591 | -9/Scraptown | CR-KLE repaired 5 parts 3625 | -9/Scraptown | Met Optimus 3625 | -9/Scraptown | Accepted into 0bPrime 3643 | -9/Scraptown | Discovered new exit (range 3) 3644 | -9/Scraptown | Entered Factory 3644 | -6/Factory | Evolved 6 slots: Power x1, Propulsion x2, Utility x3 3645 | -6/Factory | Identified exit to Lower Caves 3894 | -6/Factory | Watched by a mysterious "MATRIX" hacker. 3997 | -6/Factory | Loaded intel: 8 recycling unit locations 4038 | -6/Factory | Discovered new exit (range 4) 4123 | -6/Factory | Build established: Hacker-Sprinter 4216 | -6/Factory | Learned location of Protoforge (-2) 4261 | -6/Factory | Discovered new exit (range 8) 4409 | -6/Factory | Learned location of Lower Caves (-6) 4457 | -6/Factory | Learned Factory recycling unit intel 4489 | -6/Factory | Hacking Suite fried by hacking feedback 4494 | -6/Factory | Learned 4 Lower Caves zone layouts 4519 | -6/Factory | Loaded intel: 101 trap records 4534 | -6/Factory | Learned location of 1 exit from Cetus 4541 | -6/Factory | Learned 2 Lower Caves zone layouts 4556 | -6/Factory | Learned 2 Hub_04(d) zone layouts 4582 | -6/Factory | Learned location of 1 exit from Proximity Caves 4606 | -6/Factory | Fabricated Cld. Cesium-ion Thruster (x1) 4793 | -6/Factory | Spotted B-75 Beast 4802 | -6/Factory | Sucked down chute 4802 | -6/Factory | Entered Waste 4807 | -6/Waste | Spotted C-40 Crusher 4807 | -6/Waste | Spotted C-40 Crusher 4807 | -6/Waste | Spotted C-40 Crusher 4809 | -6/Waste | Spotted C-40 Crusher 4810 | -6/Waste | Spotted C-40 Crusher 4814 | -6/Waste | Spotted C-40 Crusher 4818 | -6/Waste | Warlord forces began an assault 4837 | -6/Waste | Allies destroyed C-40 Crusher 4861 | -6/Waste | Allies destroyed C-40 Crusher 4873 | -6/Waste | Allies destroyed C-40 Crusher 4878 | -6/Waste | Rewired C-40 Crusher 4882 | -6/Waste | Rewired C-40 Crusher 4901 | -6/Waste | Lost 8 allies 4931 | -6/Waste | Discovered new exit (range 10) 5053 | -6/Waste | Entered Factory 5053 | -6/Factory | Accompanied by 11 allies 5054 | -6/Factory | Loaded intel: 8 recycling unit locations 5057 | -6/Factory | Loaded intel: 8 recycling unit locations 5074 | -6/Factory | Build established: Infiltrator-Sprinter 5248 | -6/Factory | Discovered new exit (range 8) 5321 | -6/Factory | Spotted B-75 Beast 5461 | -6/Factory | Build established: Sprinter 5530 | -6/Factory | Lost 4 parts (1p3u) 5730 | -6/Factory | Discovered new exit (range 11) 5735 | -6/Factory | Discovered exit to Lower Caves (range 6) 5812 | -6/Factory | Build established: Hacker-Sprinter 5855 | -6/Factory | Fabricated Cld. Cesium-ion Thruster (x1) 6077 | -6/Factory | Learned location of 1 exit from Cetus 6108 | -6/Factory | Loaded intel: 92 trap records 6128 | -6/Factory | Learned Hub_04(d) stockpile data 6136 | -6/Factory | Learned 2 Hub_04(d) zone layouts 6137 | -6/Factory | Learned location of 2 exits from Proximity Caves 6145 | -6/Factory | Identified exit to Factory 6161 | -6/Factory | Learned 2 Proximity Caves zone layouts 6219 | -6/Factory | Repaired Imp. Propulsion Shielding 6453 | -6/Factory | First assault squad dispatched 6548 | -6/Factory | Core integrity fell below 50% 6548 | -6/Factory | Entered Lower Caves 6549 | -6/Lower Caves | Identified exit to Lower Caves 6653 | -6/Lower Caves | Encountered a Warlord checkpoint 6762 | -6/Lower Caves | Entered a destroyed Warlord outpost 6853 | -6/Lower Caves | Build established: Scientist-Scout 6934 | -6/Lower Caves | Attacked by a delusional Derelict stockpiling Unaware 7206 | -6/Lower Caves | Entered another Lower Caves area 7206 | -6/Lower Caves | Accompanied by 4 allies 7207 | -6/Lower Caves | Identified exit to Data Miner 7257 | -6/Lower Caves | Attracted the attention of an 0b10 checkpoint 7284 | -6/Lower Caves | Lost 4 allies 7327 | -6/Lower Caves | Lost 4 parts (1p1n2u) 7444 | -6/Lower Caves | Entered Data Miner 7444 | -6/Data Miner | Discovered new exit (range 6) 7449 | -6/Data Miner | Met Data Miner 7454 | -6/Data Miner | Learned location of Section 7 (-2) 7454 | -6/Data Miner | Acquired the access code to Warlord's prototype stash 7458 | -6/Data Miner | Received God Mode back door access code from Data Miner 7519 | -6/Data Miner | Entered Proximity Caves 7630 | -5/Proximity Caves | Learned Factory trap positions 7630 | -5/Proximity Caves | Learned Factory emergency access door positions 7634 | -5/Proximity Caves | Entered Factory 7634 | -5/Factory | Evolved 2 slots: Utility x2 7635 | -5/Factory | Identified exit to Upper Caves 7636 | -5/Factory | Loaded intel: 73 trap records 7639 | -5/Factory | Loaded intel: 8 recycling unit locations 7639 | -5/Factory | Targeted by mysterious "MATRIX" hacker. 7667 | -5/Factory | Build established: Scout 7905 | -5/Factory | Spotted B-75 Beast 7930 | -5/Factory | Discovered new exit (range 13) 8224 | -5/Factory | Discovered new exit (range 3) 8234 | -5/Factory | Search patrols dispatched 8402 | -5/Factory | Lost 4 parts (2n2u) 8534 | -5/Factory | Search patrols dispatched 8654 | -5/Factory | Cargo convoy interrupted 8656 | -5/Factory | Discovered new exit (range 16) 8667 | -5/Factory | Incoming investigation squad redirected 8715 | -5/Factory | Incoming investigation squad redirected 8783 | -5/Factory | Identified exit to Garrison 8814 | -5/Factory | Learned Testing interactive machine intel 8881 | -5/Factory | Entered Garrison 8911 | -5/Garrison | Triggered checkpoint 8922 | -5/Garrison | Garrison Relay disabled 9011 | -5/Garrison | Phase Generator disabled 9031 | -5/Garrison | Installed Relay Interface Framework 9063 | -5/Garrison | Spotted B-75 Beast 9079 | -5/Garrison | Discovered new exit (range 10) 9082 | -5/Garrison | Entered Factory 9098 | -5/Factory | Loaded intel: 8 recycling unit locations 9107 | -5/Factory | Lost 3 parts (1p2n) 9222 | -5/Factory | Spotted B-75 Beast 9287 | -5/Factory | Found Mni. Smartbomb Launcher 9382 | -5/Factory | Unchained authorized (GL-D0S) 9552 | -5/Factory | Central database locked down 9640 | -5/Factory | Build established: Hacker-Scout 9682 | -5/Factory | Search patrols dispatched 9703 | -5/Factory | Discovered new exit (range 13) 9717 | -5/Factory | Discovered new exit (range 6) 9791 | -5/Factory | Entered Upper Caves 9792 | -5/Upper Caves | Identified exit to Upper Caves 9792 | -5/Upper Caves | Lost 5 parts (1p1n3u) 9816 | -5/Upper Caves | Attracted the attention of an 0b10 checkpoint 9833 | -5/Upper Caves | Spotted B-75 Beast 9854 | -5/Upper Caves | Entered another Upper Caves area 9855 | -5/Upper Caves | Identified exit to Zhirov 9855 | -5/Upper Caves | Identified exit to Factory 9971 | -5/Upper Caves | Encountered a Warlord checkpoint 9972 | -5/Upper Caves | Entered Zhirov 9972 | -5/Zhirov | Discovered new exit (range 3) 9978 | -5/Zhirov | Met Zhirov 9986 | -5/Zhirov | Found Alien Artifact 9986 | -5/Zhirov | Identified Integrated Reactor 9986 | -5/Zhirov | Installed Integrated Reactor, increased core energy generation (+10) 10020 | -5/Zhirov | Build established: Hacker-Sprinter 10029 | -5/Zhirov | Found Alien Artifact 10038 | -5/Zhirov | Learned location of Command (-1) 10040 | -5/Zhirov | Zhirov requested help retrieving the SGEMP Prototype 10048 | -5/Zhirov | Entered Proximity Caves 10187 | -4/Proximity Caves | Learned 4 Research zone layouts 10190 | -4/Proximity Caves | Spotter reported a threat 10240 | -4/Proximity Caves | Attracted the attention of an 0b10 checkpoint 10283 | -4/Proximity Caves | Spotter reported a threat 10288 | -4/Proximity Caves | Entered Factory 10288 | -4/Factory | Evolved 2 slots: Utility x2 10339 | -4/Factory | Build established: Wizard-Sprinter 10351 | -4/Factory | Discovered new exit (range 6) 10395 | -4/Factory | Unchained authorized (GL-D0S) 10443 | -4/Factory | Loaded intel: 8 recycling unit locations 10486 | -4/Factory | Repaired VTOL Module+? 10541 | -4/Factory | Identified exit to Upper Caves 10541 | -4/Factory | Identified exit to Extension 10640 | -4/Factory | Spotted B-86 Titan 10778 | -4/Factory | Found Prototype Hackware 10778 | -4/Factory | Identified Exp. Hacking Suite 10788 | -4/Factory | Search patrols dispatched 10821 | -4/Factory | Discovered new exit (range 9) 10863 | -4/Factory | Learned Armory stockpile data 10885 | -4/Factory | Build established: Hacker-Ninja 10909 | -4/Factory | Learned location of 2 exits from Proximity Caves 10944 | -4/Factory | Learned location of 1 exit from Proximity Caves 10969 | -4/Factory | Learned Research machine intel 10982 | -4/Factory | Learned location of 1 exit from Armory 10984 | -4/Factory | Learned 8 Research zone layouts 10987 | -4/Factory | Learned location of 3 exits from Research 10999 | -4/Factory | Learned Quarantine security intel 11019 | -4/Factory | Identified exit to Research 11038 | -4/Factory | Search patrols dispatched 11047 | -4/Factory | Entered Extension 11233 | -4/Extension | Loaded intel: 2 recycling unit locations 11238 | -4/Extension | Rescued a captive Derelict 11241 | -4/Extension | Rescued a captive Derelict 11325 | -4/Extension | Learned 4 Research zone layouts 11356 | -4/Extension | Learned Quarantine terminal intel 11369 | -4/Extension | Learned location of 1 exit from Testing 11389 | -4/Extension | Learned Quarantine stockpile data 11447 | -4/Extension | Disrupted transfer network 11537 | -4/Extension | Spotted B-86 Titan 11547 | -4/Extension | First assault squad dispatched 11598 | -4/Extension | Spotted B-86 Titan 11603 | -4/Extension | Destroyed B-86 Titan 11649 | -4/Extension | Lost 8 allies 11793 | -4/Extension | Build established: Hacker-Scout 11847 | -4/Extension | Lost 4 parts (1p1n1u1w) 11993 | -4/Extension | Rescued a captive Derelict 12000 | -4/Extension | Incoming assault squad redirected 12005 | -4/Extension | Rescued a captive Derelict 12011 | -4/Extension | Rescued A7 12032 | -4/Extension | Rescued a captive Derelict 12032 | -4/Extension | Rescued a captive Derelict 12040 | -4/Extension | Rescued a captive Derelict 12040 | -4/Extension | Rescued a captive Derelict 12048 | -4/Extension | Lost 6 parts (1p4n1w) 12048 | -4/Extension | Rescued a captive Derelict 12051 | -4/Extension | Rescued a captive Derelict 12051 | -4/Extension | Rescued a captive Derelict 12118 | -4/Extension | Discovered new exit (range 6) 12162 | -4/Extension | Entered Cetus 12162 | -4/Cetus | Accompanied by 8 allies (A7) 12164 | -4/Cetus | Identified exit to Archives 12167 | -4/Cetus | Acquired a Cetus Manufacturing Module code from A7 12175 | -4/Cetus | Spotted Cetus Guard 12175 | -4/Cetus | Spotted Cetus Guard 12176 | -4/Cetus | Allies destroyed Cetus Guard 12177 | -4/Cetus | Spotted Cetus Guard 12178 | -4/Cetus | Allies destroyed Cetus Guard 12178 | -4/Cetus | Spotted Cetus Guard 12182 | -4/Cetus | Destroyed Cetus Guard 12193 | -4/Cetus | Allies destroyed Cetus Guard 12209 | -4/Cetus | Started Cetus Manufacturing Module 12234 | -4/Cetus | Manufactured an Enhanced Grunt 12235 | -4/Cetus | Escorted A7 to Cetus Mainframe 12259 | -4/Cetus | Manufactured an Enhanced Grunt 12284 | -4/Cetus | Manufactured an Enhanced Grunt 12309 | -4/Cetus | Manufactured an Enhanced Grunt 12334 | -4/Cetus | Manufactured an Enhanced Grunt 12366 | -4/Cetus | Spotted Cetus Guard 12366 | -4/Cetus | Spotted Cetus Guard 12366 | -4/Cetus | Spotted Cetus Guard 12366 | -4/Cetus | Spotted Cetus Guard 12372 | -4/Cetus | Destroyed Cetus Guard 12374 | -4/Cetus | Destroyed Cetus Guard 12388 | -4/Cetus | Allies destroyed Cetus Guard 12399 | -4/Cetus | Allies destroyed Cetus Guard 12409 | -4/Cetus | Met Revision 17 12430 | -4/Cetus | Build established: Hacker-Sprinter 12452 | -4/Cetus | Entered Archives 12452 | -4/Archives | Accompanied by 13 allies (A7) 12457 | -4/Archives | Received a hacking code to weaken MAIN.C 12498 | -4/Archives | Lost 3 allies 12505 | -4/Archives | Discovered exit to Research (range 17) 12526 | -4/Archives | Discovered new exit (range 14) 12539 | -4/Archives | Discovered new exit (range 13) 12885 | -4/Archives | Build established: Hacker-Mutant 13471 | -4/Archives | Entered Hub_04(d) 13471 | -4/Hub_04(d) | Accompanied by 8 allies 13575 | -4/Hub_04(d) | Lost 3 allies 13586 | -4/Hub_04(d) | Discovered exit to Research (range 5) 13650 | -4/Hub_04(d) | Network Hub disabled 13655 | -4/Hub_04(d) | Discovered exit to Research (range 10) 13666 | -4/Hub_04(d) | Spotted B-86 Titan 13677 | -4/Hub_04(d) | Discovered exit to Research (range 10) 13716 | -4/Hub_04(d) | Spotted Lightning 13716 | -4/Hub_04(d) | Spotted Lightning 13716 | -4/Hub_04(d) | Spotted Lightning 13724 | -4/Hub_04(d) | Network Hub disabled 13727 | -4/Hub_04(d) | Network Hub disabled 13730 | -4/Hub_04(d) | Build established: Hacker-Sprinter 13736 | -4/Hub_04(d) | Identified exit to Garrison 13741 | -4/Hub_04(d) | Entered Garrison 13741 | -4/Garrison | Accompanied by 2 allies 13753 | -4/Garrison | Triggered checkpoint 13822 | -4/Garrison | Triggered checkpoint 13875 | -4/Garrison | Triggered checkpoint 13899 | -4/Garrison | Triggered checkpoint 13901 | -4/Garrison | Discovered exit to Research (range 73) 13901 | -4/Garrison | Discovered exit to Research (range 43) 13901 | -4/Garrison | Discovered exit to Research (range 25) 13901 | -4/Garrison | Garrison Relay disabled 13927 | -4/Garrison | Triggered checkpoint 13988 | -4/Garrison | Expanded RIF knowledge: Hotswap 14009 | -4/Garrison | Entered Research 14009 | -3/Research | Evolved 2 slots: Propulsion x1, Utility x1 14010 | -3/Research | Identified exit to Armory 14011 | -3/Research | Identified exit to Research 14011 | -3/Research | Identified exit to Testing 14013 | -3/Research | Loaded intel: 118 machine locations 14038 | -3/Research | Lost 4 parts (3n1w) 14128 | -3/Research | Loaded intel: 5 recycling unit locations 14209 | -3/Research | Revision forces began assault on 0b10 14233 | -3/Research | Spotted B-86 Titan 14274 | -3/Research | Spotted B-86 Titan 14289 | -3/Research | Build established: Hacker-Mutant 14310 | -3/Research | Met up with Revision 17++ 14340 | -3/Research | Identified exit to Garrison 14469 | -3/Research | Central database locked down 14469 | -3/Research | Identified Transdimensional Reconstructor 14519 | -3/Research | Found Quantum Capacitor 14533 | -3/Research | Lost 3 allies 14623 | -3/Research | Learned Testing stockpile data 14686 | -3/Research | Learned Access emergency access door positions 14709 | -3/Research | Research terminal network offline 15075 | -3/Research | Found Prototype Device 15075 | -3/Research | Identified Adv. Kinecellerator 15123 | -3/Research | Spotted Executioner 15171 | -3/Research | Entered Testing 15174 | -3/Testing | Loaded intel: 19 interactive machine locations 15178 | -3/Testing | Found Prototype Ballistic Cannon 15178 | -3/Testing | Identified Omega Cannon 15218 | -3/Testing | Identified exit to Garrison 15385 | -3/Testing | Learned Research emergency access door positions 15415 | -3/Testing | Spotted Striker 15421 | -3/Testing | Search patrols dispatched 15438 | -3/Testing | Found Prototype Device 15438 | -3/Testing | Identified Exp. Thermal Shield 15461 | -3/Testing | Build established: Hacker-Sprinter 15484 | -3/Testing | Found Exp. Hacking Suite 15536 | -3/Testing | Entered Garrison 15570 | -3/Garrison | Garrison Relay disabled 15574 | -3/Garrison | Triggered checkpoint 15681 | -3/Garrison | Rescued a captive Derelict 15682 | -3/Garrison | Rescued a captive Derelict 15739 | -3/Garrison | Spotted B-86 Titan 15742 | -3/Garrison | Triggered checkpoint 15758 | -3/Garrison | Discovered exit to Research (range 13) 15770 | -3/Garrison | Expanded RIF knowledge: Patrol Navigation 15775 | -3/Garrison | Entered Research 15775 | -2/Research | Evolved 2 slots: Power x1, Utility x1 15847 | -2/Research | Found Quantum Capacitor 15965 | -2/Research | Discovered new exit (range 22) 15983 | -2/Research | Discovered new exit (range 8) 15985 | -2/Research | Entered Quarantine 15987 | -2/Quarantine | Loaded intel: 14 terminal locations 15997 | -2/Quarantine | Cryocooling Duct disabled 16005 | -2/Quarantine | Lost 3 parts (1p1u1w) 16012 | -2/Quarantine | Ambient heat levels rising (+20) 16012 | -2/Quarantine | Non-combat units ordered to evacuate 16126 | -2/Quarantine | Lost 3 parts (2n1u) 16166 | -2/Quarantine | Cryocooling Duct disabled 16181 | -2/Quarantine | Ambient heat levels rising (+20) 16181 | -2/Quarantine | Combat units ordered to evacuate 16204 | -2/Quarantine | Identified exit to Protoforge 16239 | -2/Quarantine | Discovered new exit (range 10) 16262 | -2/Quarantine | Identified exit to Section 7 16281 | -2/Quarantine | Quarantine Guard activated 16288 | -2/Quarantine | Found Alien Energy Cannon 16288 | -2/Quarantine | Identified Core Cannon 16296 | -2/Quarantine | Spotted Quarantine Guard 16309 | -2/Quarantine | Learned 4 Section 7 zone layouts 16339 | -2/Quarantine | Found Alien Artifact 16339 | -2/Quarantine | Identified Core Reset Matrix 16339 | -2/Quarantine | Used Core Reset Matrix 16343 | -2/Quarantine | Detected hypermatrix surge 16343 | -2/Quarantine | Sensed 4 artifacts in vicinity 16346 | -2/Quarantine | Identified exit to Access 16370 | -2/Quarantine | Met incapacitated Sigix Warrior 16370 | -2/Quarantine | Lockdown squad dispatched 16370 | -2/Quarantine | Acquired the access code to the Sigix quarantine chamber 16371 | -2/Quarantine | Unlocked Sigix quarantine chamber 16373 | -2/Quarantine | Learned 8 Research zone layouts 16373 | -2/Quarantine | Found Sigix Containment Pod 16397 | -2/Quarantine | Spotted Quarantine Guard 16398 | -2/Quarantine | Spotted Quarantine Guard 16414 | -2/Quarantine | Learned 4 Research zone layouts 16450 | -2/Quarantine | Learned 8 Research zone layouts 16501 | -2/Quarantine | Spotted Quarantine Guard 16518 | -2/Quarantine | Spotted Quarantine Guard 16561 | -2/Quarantine | Spotted Quarantine Guard 16584 | -2/Quarantine | Spotted Fortress 16603 | -2/Quarantine | Discovered exit to Section 7 (range 5) 16603 | -2/Quarantine | Discovered exit to Protoforge (range 6) 16603 | -2/Quarantine | Spotted Quarantine Guard 16603 | -2/Quarantine | Spotted Quarantine Guard 16608 | -2/Quarantine | Entered Section 7 16609 | -2/Section 7 | Detected hypermatrix surge 16609 | -2/Section 7 | Sensed 16 artifacts in vicinity 16639 | -2/Section 7 | Found Integrated Dissipator 16639 | -2/Section 7 | Installed Integrated Dissipator, increased core heat dissipation (+20) 16662 | -2/Section 7 | Identified exit to Garrison 16676 | -2/Section 7 | Found Integrated Dissipator 16676 | -2/Section 7 | Installed Integrated Dissipator, increased core heat dissipation (+20) 16715 | -2/Section 7 | Spotted S7 Guard 16719 | -2/Section 7 | Found Core Regenerator 16726 | -2/Section 7 | Discovered exit to Access (range 7) 16740 | -2/Section 7 | Spotted B-90 Cyclops 16773 | -2/Section 7 | Spotted S7 Guard 16777 | -2/Section 7 | Found Core Membrane 16777 | -2/Section 7 | Installed Core Membrane, gained immunity to corruption 16796 | -2/Section 7 | Learned Research stockpile data 16801 | -2/Section 7 | Found Microwarp Drive 16809 | -2/Section 7 | Spotted Executioner 16809 | -2/Section 7 | Spotted Executioner 16811 | -2/Section 7 | Lost 3 parts (2n1u) 16826 | -2/Section 7 | Spotted B-99 Colossus 16834 | -2/Section 7 | Spotted Executioner 16834 | -2/Section 7 | Spotted Executioner 16842 | -2/Section 7 | Integrated with Sigix Exoskeleton 16843 | -2/Section 7 | Sigix Warrior commented on Exoskeleton integration 16851 | -2/Section 7 | Learned Research stockpile data 16865 | -2/Section 7 | Core integrity fell below 50% 16896 | -2/Section 7 | Found Integrated Dissipator 16896 | -2/Section 7 | Installed Integrated Dissipator, increased core heat dissipation (+20) 16898 | -2/Section 7 | Found Integrated Dissipator 16898 | -2/Section 7 | Installed Integrated Dissipator, increased core heat dissipation (+20) 16929 | -2/Section 7 | Destroyed Executioner 16931 | -2/Section 7 | Destroyed Executioner 16949 | -2/Section 7 | Found LRC Energy Well 16949 | -2/Section 7 | Installed LRC Energy Well, increased energy storage capacity (+250) 17009 | -2/Section 7 | Entered Garrison 17036 | -2/Garrison | Spotted B-90 Cyclops 17036 | -2/Garrison | Destroyed B-90 Cyclops 17049 | -2/Garrison | Triggered checkpoint 17136 | -2/Garrison | Build established: Alien-Sigix 17193 | -2/Garrison | Spotted B-90 Cyclops 17231 | -2/Garrison | Triggered checkpoint 17248 | -2/Garrison | Triggered checkpoint 17250 | -2/Garrison | Sigix Exoskeleton integrity reduced to 80% 17265 | -2/Garrison | Core integrity fell below 20% 17373 | -2/Garrison | Found Unknown Device 17373 | -2/Garrison | Identified Adv. Force Booster 17386 | -2/Garrison | Destroyed 8 combat bots 17460 | -2/Garrison | Spotted Striker 17460 | -2/Garrison | Spotted Striker 17485 | -2/Garrison | Destroyed Striker 17488 | -2/Garrison | Destroyed Striker 17511 | -2/Garrison | Entered Access 17511 | -1/Access | Evolved 2 slots: Utility x2 17516 | -1/Access | Emitted hypermatrix ping 17521 | -1/Access | Assembled emerged from beneath the floor 17614 | -1/Access | Assembled emerged from beneath the floor 17622 | -1/Access | Scraphulk reinforcements arrived? 17658 | -1/Access | Found Prototype Device 17658 | -1/Access | Identified Exp. Shield Generator 17742 | -1/Access | Assembled emerged from beneath the floor 17761 | -1/Access | First assault squad dispatched 17853 | -1/Access | Discovered new exit (range 16) 17917 | -1/Access | Assembled emerged from beneath the floor 18000 | -1/Access | Entered Command 18005 | -1/Command | Emitted hypermatrix ping 18010 | -1/Command | Assembled emerged from beneath the floor 18085 | -1/Command | Assembled emerged from beneath the floor 18131 | -1/Command | Disengaged cave seal 18186 | -1/Command | Assembled emerged from beneath the floor 18220 | -1/Command | Assembled emerged from beneath the floor 18250 | -1/Command | First assault squad dispatched 18280 | -1/Command | Lost 7 allies 18353 | -1/Command | Disengaged cave seal 18353 | -1/Command | Assembled emerged from the dark tunnel 18356 | -1/Command | Spotted B-99 Colossus 18390 | -1/Command | Lost 5 allies 18402 | -1/Command | Spotted Combat Programmer 18416 | -1/Command | Spotted Combat Programmer 18426 | -1/Command | Destroyed Combat Programmer 18442 | -1/Command | Destroyed Combat Programmer 18493 | -1/Command | High security lockdown imminent 18494 | -1/Command | Spotted M Guard 18528 | -1/Command | Found Prototype Reactor 18528 | -1/Command | Identified Zero-point Reactor 18533 | -1/Command | Destroyed M Guard 18540 | -1/Command | Found Prototype Device 18540 | -1/Command | Identified AEGIS Remote Shield 18551 | -1/Command | Lost 4 allies 18570 | -1/Command | Spotted M Guard 18573 | -1/Command | High security lockdown engaged 18609 | -1/Command | Destroyed M Guard 18609 | -1/Command | All MAIN.C guards destroyed 18616 | -1/Command | Used Core Regenerator, restored core integrity (+400) 18630 | -1/Command | Found Zero-point Reactor 18632 | -1/Command | Found Prototype Device 18632 | -1/Command | Identified Thermal Barrier 18647 | -1/Command | 0b10 Conduit disabled 18696 | -1/Command | Met MAIN.C 18713 | -1/Command | MAIN.C activated Command garrisons 18714 | -1/Command | Discovered new exit (range 17) 18726 | -1/Command | Found Prototype Device 18726 | -1/Command | Identified Exp. Focal Shield 18728 | -1/Command | Found Prototype Device 18728 | -1/Command | Identified Exp. Phase Shifter 18733 | -1/Command | Found Prototype Processor 18733 | -1/Command | Identified Spectral Analyzer 18737 | -1/Command | Spotted B-99 Colossus 18806 | -1/Command | Sigix Exoskeleton integrity reduced to 60% 18834 | -1/Command | Warped through subspace to slip node 18834 | -1/Command | Discovered new exit (range 5) 18837 | -1/Command | Entered Access_0 18838 | -1/Access_0 | Sensed 1 artifact in vicinity 18838 | -1/Access_0 | Met Architect 18848 | -1/Access_0 | Destroyed A8 18891 | -1/Access_0 | Destroyed Architect 18892 | -1/Access_0 | Architect triggered a singularity event 18893 | -1/Access_0 | Found Hpw. Transdimensional Reconstructor 18893 | -1/Access_0 | Warped through subspace to slip node 18893 | -1/Access_0 | Discovered new exit (range 8) 18894 | -1/Access_0 | Core integrity fell below 50% 18896 | *** | Escaped singularity! Last Messages --------------- 18890_ Beam penetrates Architect. 18890_ Architect suffers critical hit (Destroy). 18890_ Destroyed Prototype Protection. 18891_ Extracted 294 energy. 18891_ Beam penetrates Architect. 18891_ Architect: "If I can't win, no one wins!" [Achievement: Blink Of An Eye] 18891_ Architect destroyed. 18892_ A0_COM: Initiating irreversible singularity event. Goodbye. 18892_ Extracted 19 energy. 18893_ A0_COM: 10. 18893_ Acquired Hpw. Transdimensional Reconstructor. 18893_ Warped through subspace, drawn to slip node. 18893_ EXIT=FOUND 18894_ A0_COM: 9. 18895_ A0_COM: 8. 18896_ A0_COM: 7. Map ----- +----------------------------------------------------+ | | | | | | | | | | | | | | | | | | | | | | | | | | | | | | | | | ??????????#############################??????????? | | ??????????#############################??????????? | | ?????????###############################?????????? | | ????????#################################????????? | | ????????#################################????????? | | ????????#################################????????? | | ???????###################################???????? | | ???????################## ################???????? | | ???????################# ###############???????? | | ???????################# X ###############???????? | | ???????################# ###############???????? | | ??????################# ################??????? | | ???????################ ################???????? | | ???????################# ###############???????? | | ??????################# ################??????? | | ???????################ ################???????? | | ??????################# ! ################??????? | | ???????################ ################???????? | | ???????################# ################???????? | | ???????###################################???????? | | ???????###################################???????? | | ???????###################################???????? | | ????????#################################????????? | | ????????#################################????????? | | ????????#################################????????? | | ?????????###############################?????????? | | ??????????#############################??????????? | | ??????????#############################??????????? | | ???????????###########################???????????? | | ????????????#########################????????????? | | ?????????????#######################?????????????? | | ???????????????###################???????????????? | | ????????????????#################????????????????? | | ???????????????????###########???????????????????? | +----------------------------------------------------+ Best States ------------- Heat Dissipation 202 Energy Generation 90 Energy Capacity 850 Matter Stores 300 Matter Capacity 300 Sight Range 22 Robot Scan Range 16 Terrain Scan Range 20 Terrain Scan Density 1210 ECM Strength 1 Jamming Range 16 Cloak Strength 4 Power Amplification 20 Base Temperature (-) 200 Armor Coverage 450 Resistance: KI 50 Resistance: TH 50 Resistance: EX 50 Resistance: EM 50 Resistance: I 50 Resistance: S 50 Resistance: P 50 Propulsion Shielding 66 Point Defense Rating 240 Weapon Cycling 25 Phase Shifting 20 Evasion (%) 98 Targeting Accuracy 6 Core Analysis 6 Armor Integrity Analysis 30 Recoil Reduction 1 Matter Filtering 30 Energy Filtering 50 Offensive Hacking 52 Defensive Hacking 24 Relay Coupler Types 1 Relay Coupler Value 36 Authchip Count 1 Trap Extractor Capacity 4 Item Schematics ----------------- None Robot Schematics ------------------ None Fabricated ------------ Cld. Cesium-ion Thruster | x1 | -6/Factory | Authchip Cld. Cesium-ion Thruster | x1 | -6/Factory | Authchip Repaired ---------- Flight Unit | 10% | -10/Materials Flight Unit | 25% | -10/Materials Lgt. Armor Plating | 6% | -9/Materials Imp. Flight Unit | 42% | -9/Materials Imp. Flight Unit | 5% | -9/Storage Cesium-ion Thruster | 16% | -9/Storage Imp. Propulsion Shielding | 35% | -6/Factory VTOL Module | 16% | -4/Factory Studied --------- Field Propulsion Array | -2/Quarantine | Hacked Mic. Antimatter Reactor | -2/Quarantine | Hacked Impulse Thruster Array | -2/Quarantine | Hacked Alien Tech Used ----------------- Integrated Reactor Core Cannon Core Reset Matrix Integrated Dissipator Core Membrane Microwarp Drive Sigix Exoskeleton Sigix Sheargun LRC Energy Well Core Regenerator Transdimensional Reconstructor High-powered Transdimensional Reconstructor Achievements -------------- Blink Of An Eye Challenges ------------ None Game ------ Seed DoorArchitectScrap Manual? 0 Play Time 06:37:21 Cumulative 942.5 hours Start 2026.02.23 @ 13:20:21 End 2026.02.24 @ 20:24:43 Sessions 9 Manual Loads 0 Difficulty Rogue Special Mode None Game No. 362 Rogue 362 Adventurer 0 Explorer 0 Win Type 6 Total 98 Types 46/6/17/9/8/1/2/3/1/5 Lore% 98 Gallery% 88 Achievement% 87 Wizard Run 0 Options --------- Layout 1 ASCII 0 Keyboard 0 Movement Numpad Keybinds 0 Fullscreen 1 Font 24/Smallcaps Map View 50x35 Zoom Use 0% Tactical HUD 1 Map Filters NONE Filters NONE Steam 1 RUN: ce2aa668-fc86-4df4-b60e-cbf7fa686965